Body Name,Body,Service Level,Expense Type,Expense Code,Narrative,Date,Transaction Number,Amount,Capital and Revenue,Supplier Name,Supplier ID
South Ribble Council,http://statistics.data.gov.uk/doc/local-authority/30UN,Neighbourhood Admin & Support,Grounds Maint Cntrctrs Chgs,4657,1 RLH168 COUNTERBALANCE UNIT + LEVER,26/01/2018,0000437240,"1,285.22",Revenue,Abacus Lighting Ltd,132459
South Ribble Council,http://statistics.data.gov.uk/doc/local-authority/30UN,Neighbourhood Admin & Support,Grounds Maint Cntrctrs Chgs,4657,CARRIAGE,26/01/2018,0000437240,65.00,Revenue,Abacus Lighting Ltd,132459
South Ribble Council,http://statistics.data.gov.uk/doc/local-authority/30UN,Property Services,Capital Expenditure,C230,"Advice on McKenzie Arms, Bamber Bridge for an invoice number 3813747 professional services in connection ",24/01/2018,0000437110,"6,500.00",Revenue,ADDLESHAW GODDARD LLP,131267
South Ribble Council,http://statistics.data.gov.uk/doc/local-authority/30UN,Property Services,Capital Expenditure,C230,non vat,24/01/2018,0000437110,6.00,Revenue,ADDLESHAW GODDARD LLP,131267
South Ribble Council,http://statistics.data.gov.uk/doc/local-authority/30UN,HR & Communications,Payroll Suspense,1741,"MEMBERSHIP FEES 1 JANUARY - 31 DECEMBER 2018 NAMES REDACTED",05/01/2018,0000436781,388.00,Revenue,ALARM,00014630
South Ribble Council,http://statistics.data.gov.uk/doc/local-authority/30UN,Area 3 - Parks/Leyland East West,Capital Expenditure,C230,Replacement of vine propagation house timber frame with aluminium traditional system Worde Park Walled Garden Leyland ,24/01/2018,0000436386,"1,428.83",Revenue,Alitex Ltd,132080
South Ribble Council,http://statistics.data.gov.uk/doc/local-authority/30UN,Shared Financial Services,Financial,4811,post office,10/01/2018,0000436840,"1,034.63",Revenue,ALLPAY LTD,00122276
South Ribble Council,http://statistics.data.gov.uk/doc/local-authority/30UN,Shared Financial Services,Financial,4811,paypoint,10/01/2018,0000436840,166.21,Revenue,ALLPAY LTD,00122276
South Ribble Council,http://statistics.data.gov.uk/doc/local-authority/30UN,Shared Financial Services,Financial,4811,webconnect,10/01/2018,0000436840,46.56,Revenue,ALLPAY LTD,00122276
South Ribble Council,http://statistics.data.gov.uk/doc/local-authority/30UN,Shared Assurance Services,Employee Related Insurance,1800,"AON renewal insurance policies, General properties, commercial properties, contract works, computers, Crime, Terrorism.",19/01/2018,0000437065,"2,330.78",Revenue,Aon UK Limited Accounts Division,132142
South Ribble Council,http://statistics.data.gov.uk/doc/local-authority/30UN,Shared Assurance Services,Employee Related Insurance,1800,"AON renewal insurance policies, General properties, commercial properties, contract works, computers, Crime, Terrorism.",19/01/2018,0000437066,667.57,Revenue,Aon UK Limited Accounts Division,132142
South Ribble Council,http://statistics.data.gov.uk/doc/local-authority/30UN,Shared Assurance Services,Employee Related Insurance,1800,"AON renewal insurance policies, General properties, commercial properties, contract works, computers, Crime, Terrorism.",19/01/2018,0000437067,"3,724.00",Revenue,Aon UK Limited Accounts Division,132142
South Ribble Council,http://statistics.data.gov.uk/doc/local-authority/30UN,Shared Assurance Services,Employee Related Insurance,1800,"AON renewal insurance policies, General properties, commercial properties, contract works, computers, Crime, Terrorism.",19/01/2018,0000437068,"50,780.54",Revenue,Aon UK Limited Accounts Division,132142
South Ribble Council,http://statistics.data.gov.uk/doc/local-authority/30UN,Shared Assurance Services,Employee Related Insurance,1800,"AON renewal insurance policies, General properties, commercial properties, contract works, computers, Crime, Terrorism.",19/01/2018,0000437069,"4,334.40",Revenue,Aon UK Limited Accounts Division,132142
South Ribble Council,http://statistics.data.gov.uk/doc/local-authority/30UN,Shared Assurance Services,Employee Related Insurance,1800,AON Broker & Consultancy fees,24/01/2018,0000437199,"1,200.00",Revenue,Aon UK Limited Accounts Division,132142
South Ribble Council,http://statistics.data.gov.uk/doc/local-authority/30UN,Shared Assurance Services,Employee Related Insurance,1800,AON Broker & Consultancy fees,24/01/2018,0000437200,"1,625.00",Revenue,Aon UK Limited Accounts Division,132142
South Ribble Council,http://statistics.data.gov.uk/doc/local-authority/30UN,Housing,Cap Grant- Improve Grants,C570,DFG ADAPTATION WORK AT ADDRESS REDACTED AS PER QUOTE OF 3498.47 CUSTOMER CONTRIBUTION OF 777.10,31/01/2018,0000437331,"3,498.47",Revenue,APG DOMESTIC SERVICES,00061463
South Ribble Council,http://statistics.data.gov.uk/doc/local-authority/30UN,Housing,Cap Grant- Improve Grants,C570,DFG ADAPTATION WORK AT ADDRESS REDACTED AS PER  QUOTE 4280.14 CUSTOMER CONTRIBUTION OF 244.86,31/01/2018,0000437350,"4,280.14",Revenue,APG DOMESTIC SERVICES,00061463
South Ribble Council,http://statistics.data.gov.uk/doc/local-authority/30UN,Housing,Cap Grant- Improve Grants,C570,DFG ADAPTATION WORK AT ADDRESS REDACTED  AS PER YOUR QUOTE O 4195.00,31/01/2018,0000437351,"4,464.10",Revenue,APG DOMESTIC SERVICES,00061463
South Ribble Council,http://statistics.data.gov.uk/doc/local-authority/30UN,Regeneration,Other Misc,4851,Uplighter 430/8021 7.99 Highchair 709/4143 29.99 Fitted Sheet 481/2816 6.99 Fitted Sheet 481/2816 6.99 Mattress Protector,03/01/2018,0000436697,263.21,Revenue,ARGOS,00101271
South Ribble Council,http://statistics.data.gov.uk/doc/local-authority/30UN,HR & Communications,Recruitment Expenses,1500,2 x advert for: Governance and Member Service Team Leader and Trainee posts,12/01/2018,0000436892,700.00,Revenue,ASSOCIATION OF DEMOCRATIC SERVICE OFFICE,00122250
South Ribble Council,http://statistics.data.gov.uk/doc/local-authority/30UN,Regeneration,Other Misc,4851,to match off against credit HS9765C,10/01/2018,0000436816,293.22,Revenue,B & M RETAIL,131000
South Ribble Council,http://statistics.data.gov.uk/doc/local-authority/30UN,Regeneration,Other Misc,4851,Furniture,10/01/2018,0000436920,261.87,Revenue,B & M RETAIL,131000
South Ribble Council,http://statistics.data.gov.uk/doc/local-authority/30UN,Property Services,Rep & Maint Premises,2025,Please reinstate the power to the drying room at Moss Side Depot and install 2 new heaters,12/01/2018,0000436925,323.08,Revenue,BELEC ELECTRICAL LTD,130290
South Ribble Council,http://statistics.data.gov.uk/doc/local-authority/30UN,Area 2 - Waste Transport/Eastern & Central Teams,External Contractors Charges,4570,Replace five sodium lights with new light fittings and install additional lights to increase working lighting levels,12/01/2018,0000436926,"3,734.13",Revenue,BELEC ELECTRICAL LTD,130290
South Ribble Council,http://statistics.data.gov.uk/doc/local-authority/30UN,Property Services,Capital Expenditure,C230,To undertake works on 1st floor east wing Civic centre as per quotation dated 27th March 2017 given to property services.,24/01/2018,0000437171,"4,901.86",Revenue,BELEC ELECTRICAL LTD,130290
South Ribble Council,http://statistics.data.gov.uk/doc/local-authority/30UN,Information Services,Peripherals,4244,"BGS Digital Data Licence for 115sqkm of BGS Geology 50K data for 3 years, covering period 02/12/17 - 01/12/20",31/01/2018,0000437334,282.48,Revenue,BRITISH GEOLOGICAL SURVEY  NERC,00087463
South Ribble Council,http://statistics.data.gov.uk/doc/local-authority/30UN,Housing,Cap Grant- Improve Grants,C570,DFG WORKS AT ADDRESS REDACTED AS PER YOUR QUOTE 9000.00,24/01/2018,0000437176,"9,170.00",Revenue,C L Danson Building Contractors Ltd,132420
South Ribble Council,http://statistics.data.gov.uk/doc/local-authority/30UN,Environmental Health,Other Misc,4851,DHR Training 7 December at SRBC as per NAME REDACTED,31/01/2018,0000437253,"1,850.00",Revenue,Calico Enterprise,132188
South Ribble Council,http://statistics.data.gov.uk/doc/local-authority/30UN,Revenues Plus,Professional Fees,4520,End of year Webinars,31/01/2018,0000437339,900.00,Revenue,CAPITA BUSINESS SERVICES LTD,00122179
South Ribble Council,http://statistics.data.gov.uk/doc/local-authority/30UN,Environmental Health,Licence Fees,488B,mgmt fee qtr 4,24/01/2018,0000436946,"1,125.00",Revenue,Carr Street Community Centre,130312
South Ribble Council,http://statistics.data.gov.uk/doc/local-authority/30UN,HR & Communications,Payroll Suspense,1741,"2018 Subscription 01/01/18 - 31/12/18 NAME REDACTED Membership number 206682",03/01/2018,0000436713,298.00,Revenue,CHARTERED INST OF HOUSING,00018160
South Ribble Council,http://statistics.data.gov.uk/doc/local-authority/30UN,Shared Financial Services,External Contractors Charges,4570,Provision of Shared Financial Services for the period 1st April 2017 to 31st March 2018,03/01/2018,0000436711,"150,000.00",Revenue,CHORLEY BOROUGH COUNCIL,00017352
South Ribble Council,http://statistics.data.gov.uk/doc/local-authority/30UN,Homelessness,Contributions,4730,Block booking Flat 20 Cotswold House December  31days  @ 35.28 per day = 1093.68 + VAT.,05/01/2018,0000436773,"1,093.68",Revenue,CHORLEY BOROUGH COUNCIL,00017352
South Ribble Council,http://statistics.data.gov.uk/doc/local-authority/30UN,Homelessness,Contractors Charges 5,5311,"30/11/2017  18/12/2017, which totals 282.24 + VAT  Flat 3 MH prior to move to SRBC Room",10/01/2018,0000436812,282.24,Revenue,CHORLEY BOROUGH COUNCIL,00017352
South Ribble Council,http://statistics.data.gov.uk/doc/local-authority/30UN,Area 2 - Waste Transport/Eastern & Central Teams,Materials General,4040,"1 SEAT BELT & CONNECTOR, 1 FUEL CAP - PJ62UCM - JFC9694 - AW",10/01/2018,0000436882,355.96,Revenue,CICELEY COMMERCIALS LTD,00059381
South Ribble Council,http://statistics.data.gov.uk/doc/local-authority/30UN,Area 2 - Waste Transport/Eastern & Central Teams,External Contractors Charges,4570,"Spec Repair, PJ62 UCM, JFC9867. (NAME REDACTED)",17/01/2018,0000437030,388.69,Revenue,CICELEY COMMERCIALS LTD,00059381
South Ribble Council,http://statistics.data.gov.uk/doc/local-authority/30UN,Information Services,Peripherals,4248,Additional charge to SRBC for exceeding Data Storage & Recovery quota for period 01/10/17 - 31/12/17,19/01/2018,0000437079,526.32,Revenue,CIVICA UK LTD,00102717
South Ribble Council,http://statistics.data.gov.uk/doc/local-authority/30UN,Regeneration,Other Misc,4851,Removal Services,10/01/2018,0000436793,350.00,Revenue,Clark`s Removals & Storage,132383
South Ribble Council,http://statistics.data.gov.uk/doc/local-authority/30UN,Area 3 - Parks/Leyland East West,Grounds Maint Cntrctrs Chgs,4657,2 X GRAB WAGONS (INERT WASTE) TO ATTEND WORDEN PARK - TUESDAY 12TH DECEMBER 2017,03/01/2018,0000436692,450.00,Revenue,CLIVE HURT (PLANT HIRE) LTD,00023553
South Ribble Council,http://statistics.data.gov.uk/doc/local-authority/30UN,Development Enterprise & Comm Mgnt,Other Misc,485K,Full double page colour spread as an exclusive introduction in the NW 2017 Stand Alone Edition at the agreed rate of 990.00 ,03/01/2018,0000435174,990.00,Revenue,COMMERCIAL PROPERTY MONTHLY,00116211
South Ribble Council,http://statistics.data.gov.uk/doc/local-authority/30UN,Revenues Plus,Postage,4291,Postage for Dec 17,05/01/2018,0000436771,353.43,Revenue,CRITIQOM,131053
South Ribble Council,http://statistics.data.gov.uk/doc/local-authority/30UN,Revenues Plus,Stationery,4130,Stationery for Dec 17,05/01/2018,0000436801,"1,029.08",Revenue,CRITIQOM,131053
South Ribble Council,http://statistics.data.gov.uk/doc/local-authority/30UN,Revenues Plus,Postage,4291,Postage for January 2018,12/01/2018,0000436976,350.16,Revenue,CRITIQOM,131053
South Ribble Council,http://statistics.data.gov.uk/doc/local-authority/30UN,Revenues Plus,Postage,4291,Postage for January 2018,24/01/2018,0000437162,583.46,Revenue,CRITIQOM,131053
South Ribble Council,http://statistics.data.gov.uk/doc/local-authority/30UN,Revenues Plus,Postage,4291,Postage for January 2018,26/01/2018,0000437243,337.02,Revenue,CRITIQOM,131053
South Ribble Council,http://statistics.data.gov.uk/doc/local-authority/30UN,Area 2 - Waste Transport/Eastern & Central Teams,External Contractors Charges,4570,SPEC REPAIR - JFC9841 - PO13UUM - PD,05/01/2018,0000436760,599.00,Revenue,DAVAND LTD (trading as Longton Coachcraft),131579
South Ribble Council,http://statistics.data.gov.uk/doc/local-authority/30UN,Homelessness,Contributions,4730,"Disc housing support services Quarter 3 October-December 2017 4,875.00",03/01/2018,0000436723,"4,875.00",Revenue,Disc (Developing initiatives supporting communitie,132271
South Ribble Council,http://statistics.data.gov.uk/doc/local-authority/30UN,Neighbourhood Admin & Support,Materials General,4040, BLACK SACKS `KEEP SOUTH RIBBLE TIDY` in white - 18x29x39`` 100g,03/01/2018,0000436676,"2,263.80",Revenue,Durasak Ltd,132141
South Ribble Council,http://statistics.data.gov.uk/doc/local-authority/30UN,Homelessness,Other Expenses,4630,NPSS HRA training September 2017,26/01/2018,0000437249,603.00,Revenue,East Cambridgeshire District Council,132219
South Ribble Council,http://statistics.data.gov.uk/doc/local-authority/30UN,Information Services,Peripherals,4260,,05/01/2018,0000436857,"2,463.03",Revenue,EE Ltd,131653
South Ribble Council,http://statistics.data.gov.uk/doc/local-authority/30UN,Information Services,Peripherals,4260,non-vat,05/01/2018,0000436857,10.57,Revenue,EE Ltd,131653
South Ribble Council,http://statistics.data.gov.uk/doc/local-authority/30UN,Area 2 - Waste Transport/Eastern & Central Teams,Materials General,4040,1 x TRACK - TMF01A3 - JFC9759,03/01/2018,0000436589,475.20,Revenue,F R SHARROCK LTD,00034539
South Ribble Council,http://statistics.data.gov.uk/doc/local-authority/30UN,Area 2 - Waste Transport/Eastern & Central Teams,External Contractors Charges,4570,RESIDUAL WASTE COLLECTIONS NOVEMBER 2017,03/01/2018,0000436566,"40,257.04",Revenue,FCC Environment Services (UK) Ltd,131612
South Ribble Council,http://statistics.data.gov.uk/doc/local-authority/30UN,Area 2 - Waste Transport/Eastern & Central Teams,External Contractors Charges,4570,DRY  RECYCLABLE COLLECTIONS (NON TERRACED) NOVEMBER 2017,03/01/2018,0000436566,"41,226.30",Revenue,FCC Environment Services (UK) Ltd,131612
South Ribble Council,http://statistics.data.gov.uk/doc/local-authority/30UN,Area 2 - Waste Transport/Eastern & Central Teams,External Contractors Charges,4570,DRY RECYCLABLE COLLECTIONS (TERRACED) NOVEMBER 2017,03/01/2018,0000436566,"1,957.85",Revenue,FCC Environment Services (UK) Ltd,131612
South Ribble Council,http://statistics.data.gov.uk/doc/local-authority/30UN,Area 2 - Waste Transport/Eastern & Central Teams,External Contractors Charges,4570,ORGANIC WASTE COLLECTIONS (NON-TERRACED) NOVEMBER 2017,03/01/2018,0000436566,"28,574.63",Revenue,FCC Environment Services (UK) Ltd,131612
South Ribble Council,http://statistics.data.gov.uk/doc/local-authority/30UN,Area 2 - Waste Transport/Eastern & Central Teams,External Contractors Charges,4570,SCHEDULE 2 PROPERTIES NOVEMBER 2017,03/01/2018,0000436566,"1,634.76",Revenue,FCC Environment Services (UK) Ltd,131612
South Ribble Council,http://statistics.data.gov.uk/doc/local-authority/30UN,Area 2 - Waste Transport/Eastern & Central Teams,External Contractors Charges,4570,COMMERCIAL WASTE - NOVEMBER 2017,03/01/2018,0000436566,"6,404.30",Revenue,FCC Environment Services (UK) Ltd,131612
South Ribble Council,http://statistics.data.gov.uk/doc/local-authority/30UN,Area 2 - Waste Transport/Eastern & Central Teams,External Contractors Charges,4570,BULY WASTE - NOVEMBER 2017,03/01/2018,0000436566,885.34,Revenue,FCC Environment Services (UK) Ltd,131612
South Ribble Council,http://statistics.data.gov.uk/doc/local-authority/30UN,Area 2 - Waste Transport/Eastern & Central Teams,External Contractors Charges,4570,WEEE COLLECTIONS - NOVEMBER 2017,03/01/2018,0000436566,331.03,Revenue,FCC Environment Services (UK) Ltd,131612
South Ribble Council,http://statistics.data.gov.uk/doc/local-authority/30UN,Area 2 - Waste Transport/Eastern & Central Teams,External Contractors Charges,4570,CLINICAL COLLECTIONS - NOVEMBER 2017,03/01/2018,0000436566,563.74,Revenue,FCC Environment Services (UK) Ltd,131612
South Ribble Council,http://statistics.data.gov.uk/doc/local-authority/30UN,Area 2 - Waste Transport/Eastern & Central Teams,External Contractors Charges,4570,ADDITIONAL PROPERTIES - NOVEMBER 2017,03/01/2018,0000436566,"1,301.95",Revenue,FCC Environment Services (UK) Ltd,131612
South Ribble Council,http://statistics.data.gov.uk/doc/local-authority/30UN,Area 2 - Waste Transport/Eastern & Central Teams,External Contractors Charges,4570,REPLACEMENT BINS - NOVEMBER 2017,03/01/2018,0000436566,"5,000.00",Revenue,FCC Environment Services (UK) Ltd,131612
South Ribble Council,http://statistics.data.gov.uk/doc/local-authority/30UN,Area 2 - Waste Transport/Eastern & Central Teams,External Contractors Charges,4570,RESIDUAL WASTE DECEMBER 2017,10/01/2018,0000436849,"41,598.94",Revenue,FCC Environment Services (UK) Ltd,131612
South Ribble Council,http://statistics.data.gov.uk/doc/local-authority/30UN,Area 2 - Waste Transport/Eastern & Central Teams,External Contractors Charges,4570,DRY RECYCLABLE NON- TERRACED DECEMBER 2017,10/01/2018,0000436849,"42,600.51",Revenue,FCC Environment Services (UK) Ltd,131612
South Ribble Council,http://statistics.data.gov.uk/doc/local-authority/30UN,Area 2 - Waste Transport/Eastern & Central Teams,External Contractors Charges,4570,DRY RECYCLABLE  TERRACED DECEMBER 2017,10/01/2018,0000436849,"2,023.12",Revenue,FCC Environment Services (UK) Ltd,131612
South Ribble Council,http://statistics.data.gov.uk/doc/local-authority/30UN,Area 2 - Waste Transport/Eastern & Central Teams,External Contractors Charges,4570,ORGANIC WASTE NON TERRACED DECEMBER 2017,10/01/2018,0000436849,"29,527.11",Revenue,FCC Environment Services (UK) Ltd,131612
South Ribble Council,http://statistics.data.gov.uk/doc/local-authority/30UN,Area 2 - Waste Transport/Eastern & Central Teams,External Contractors Charges,4570,SCHEDULE 2 PROPERTIES DECEMBER 2017,10/01/2018,0000436849,"1,689.25",Revenue,FCC Environment Services (UK) Ltd,131612
South Ribble Council,http://statistics.data.gov.uk/doc/local-authority/30UN,Area 2 - Waste Transport/Eastern & Central Teams,External Contractors Charges,4570,COMMERCIAL WASTE DECEMBER 2017,10/01/2018,0000436849,"6,617.78",Revenue,FCC Environment Services (UK) Ltd,131612
South Ribble Council,http://statistics.data.gov.uk/doc/local-authority/30UN,Area 2 - Waste Transport/Eastern & Central Teams,External Contractors Charges,4570,BULKY WASTE DECEMBER 2017,10/01/2018,0000436849,914.85,Revenue,FCC Environment Services (UK) Ltd,131612
South Ribble Council,http://statistics.data.gov.uk/doc/local-authority/30UN,Area 2 - Waste Transport/Eastern & Central Teams,External Contractors Charges,4570,WEEE COLLECTIONS DECEMBER 2017,10/01/2018,0000436849,342.06,Revenue,FCC Environment Services (UK) Ltd,131612
South Ribble Council,http://statistics.data.gov.uk/doc/local-authority/30UN,Area 2 - Waste Transport/Eastern & Central Teams,External Contractors Charges,4570,CLINICAL WASTE COLLNS DECEMBER 2017,10/01/2018,0000436849,582.54,Revenue,FCC Environment Services (UK) Ltd,131612
South Ribble Council,http://statistics.data.gov.uk/doc/local-authority/30UN,Area 2 - Waste Transport/Eastern & Central Teams,External Contractors Charges,4570,ADDITIONAL PROPERTIES DECEMBER 2017,10/01/2018,0000436849,"1,345.35",Revenue,FCC Environment Services (UK) Ltd,131612
South Ribble Council,http://statistics.data.gov.uk/doc/local-authority/30UN,Area 2 - Waste Transport/Eastern & Central Teams,External Contractors Charges,4570,REPLACEMENT BINS DECEMBER 2017,10/01/2018,0000436849,"5,000.00",Revenue,FCC Environment Services (UK) Ltd,131612
South Ribble Council,http://statistics.data.gov.uk/doc/local-authority/30UN,Shared Financial Services,Balance Sheet,0030,Refund re: Inv. 300031 Refunded to bank.,03/01/2018,0000436767,487.80,Revenue,FORWARD CHEMICALS LTD T/A ZEP UK LTD,130241
South Ribble Council,http://statistics.data.gov.uk/doc/local-authority/30UN,Housing,Contributions,4730,Gas servicing for winter warmth scheme,24/01/2018,0000437163,360.00,Revenue,GOS Heating Ltd,131387
South Ribble Council,http://statistics.data.gov.uk/doc/local-authority/30UN,Shared Financial Services,Pensions Increase Act Payments,1701,Recharge Pension Costs Second Half 17/18.,17/01/2018,0000437004,"6,347.00",Revenue,GREATER MANCHESTER PENSION FUND,00022538
South Ribble Council,http://statistics.data.gov.uk/doc/local-authority/30UN,Area 1 - Penwortham Western Parishes,Contract Hire & Lease Costs,3212,Sweeper Hire Monday 16/10/2017 for 7 weeks 620 Per/week,03/01/2018,0000436705,496.00,Revenue,GULLIVERS TRUCK HIRE LTD,130582
South Ribble Council,http://statistics.data.gov.uk/doc/local-authority/30UN,Area 2 - Waste Transport/Eastern & Central Teams,Materials General,4040,ASSORTED FILTERS (IMPREST STOCK),19/01/2018,0000437100,503.28,Revenue,H & J SERVICES LTD,00114446
South Ribble Council,http://statistics.data.gov.uk/doc/local-authority/30UN,Area 2 - Waste Transport/Eastern & Central Teams,Materials General,4040,ASSORTED FILTERS (IMPREST STOCK),26/01/2018,0000437241,327.36,Revenue,H & J SERVICES LTD,00114446
South Ribble Council,http://statistics.data.gov.uk/doc/local-authority/30UN,Area 3 - Parks/Leyland East West,Grounds Maint Cntrctrs Chgs,4657,1x 88020801 Mirage Seat,19/01/2018,0000433258,420.00,Revenue,HAGS SMP LTD,130596
South Ribble Council,http://statistics.data.gov.uk/doc/local-authority/30UN,Area 3 - Parks/Leyland East West,Grounds Maint Cntrctrs Chgs,4657,Carriage,19/01/2018,0000433258,42.00,Revenue,HAGS SMP LTD,130596
South Ribble Council,http://statistics.data.gov.uk/doc/local-authority/30UN,Area 3 - Parks/Leyland East West,Grounds Maint Cntrctrs Chgs,4657,1 X HAG8024752 - BLUE PLASTIC ROOF ASSEMBLY FOR WOODEN POLE UNIMINI,19/01/2018,0000437112,440.00,Revenue,HAGS SMP LTD,130596
South Ribble Council,http://statistics.data.gov.uk/doc/local-authority/30UN,Area 3 - Parks/Leyland East West,Grounds Maint Cntrctrs Chgs,4657,1 X HAG8013727 BALCONY PLATFORM & FIXINGS,19/01/2018,0000437112,90.00,Revenue,HAGS SMP LTD,130596
South Ribble Council,http://statistics.data.gov.uk/doc/local-authority/30UN,Area 3 - Parks/Leyland East West,Grounds Maint Cntrctrs Chgs,4657,DELIVERY CHARGE,19/01/2018,0000437112,50.00,Revenue,HAGS SMP LTD,130596
South Ribble Council,http://statistics.data.gov.uk/doc/local-authority/30UN,Area 3 - Parks/Leyland East West,Grounds Maint Cntrctrs Chgs,4657,2x 89301050 Tango Swing and Chain Assembly including delivery.,19/01/2018,0000437113,348.00,Revenue,HAGS SMP LTD,130596
South Ribble Council,http://statistics.data.gov.uk/doc/local-authority/30UN,Area 3 - Parks/Leyland East West,Grounds Maint Cntrctrs Chgs,4657,2x 89301050 Tango Swing and Chain Assembly including delivery.,19/01/2018,0000437113,348.00,Revenue,HAGS SMP LTD,130596
South Ribble Council,http://statistics.data.gov.uk/doc/local-authority/30UN,Information Services,Training Expense-Course Fees,1420,"Winter Workshop & UGM 18 & 19 January 2018 - delegate, NAME REDACTED",12/01/2018,0000436941,460.00,Revenue,HALAROSE LTD,00024358
South Ribble Council,http://statistics.data.gov.uk/doc/local-authority/30UN,Democratic Services,Other Misc,4970,NAMES REDACTED to attend the Halarose Workshop and User Group Meeting on 18 & 19th January 2018 The Met Hotel Leeds,17/01/2018,0000436958,920.00,Revenue,HALAROSE LTD,00024358
South Ribble Council,http://statistics.data.gov.uk/doc/local-authority/30UN,Information Services,Peripherals,4248,"Annual support & maintenance for AVantGuard Semi network licence + 8 additional clients, for period 01/03/18 - 28/02/19",17/01/2018,0000436994,"1,635.37",Revenue,HALAROSE LTD,00024358
South Ribble Council,http://statistics.data.gov.uk/doc/local-authority/30UN,Regeneration,Other Misc,4851,Skips and waste removal,17/01/2018,0000436995,360.00,Revenue,Hall Building Contractors Ltd,131423
South Ribble Council,http://statistics.data.gov.uk/doc/local-authority/30UN,Neighbourhood Admin & Support,Vehicle Running Costs,3134,"1,500 LITRES GAS OIL (@0.5431 per litre)",17/01/2018,0000436937,815.85,Revenue,Hall Fuels trading name of WFL (UK) Ltd,00116758
South Ribble Council,http://statistics.data.gov.uk/doc/local-authority/30UN,Neighbourhood Admin & Support,Vehicle Running Costs,3132,"15,000 LITRES DIESEL (@0.9902 per litre)",17/01/2018,0000436949,"14,892.75",Revenue,Hall Fuels trading name of WFL (UK) Ltd,00116758
South Ribble Council,http://statistics.data.gov.uk/doc/local-authority/30UN,Property Services,Capital Expenditure,C230,Please carry out flexi time and access control up-grades for South Ribble Borough Council as per quotation dated 7th April 2017,24/01/2018,0000437099,"48,362.19",Revenue,HFX LTD,00023728
South Ribble Council,http://statistics.data.gov.uk/doc/local-authority/30UN,Environmental Health,Licence Fees,488B,mgmt fee 4th qtr,24/01/2018,0000436948,"1,000.00",Revenue,HIGHER WALTON COMMUNITY CENTRE,00070535
South Ribble Council,http://statistics.data.gov.uk/doc/local-authority/30UN,Shared Financial Services,Balance Sheet,0140,Balance Sheet,10/01/2018,0000436706,"2,358.00",Revenue,HM REVENUE & CUSTOMS,00024837
South Ribble Council,http://statistics.data.gov.uk/doc/local-authority/30UN,Regeneration,Other Misc,4851,Promotional Support spring fair,05/01/2018,0000436818,295.00,Revenue,HOOLE VILLAGE MEMORIAL HALL COMMITTEE,00023456
South Ribble Council,http://statistics.data.gov.uk/doc/local-authority/30UN,Information Services,Peripherals,4248,LALM Lalpac Enterprise Server Edition annual maintenance for period 18/03/18 - 17/03/19,31/01/2018,0000437305,"4,882.11",Revenue,IDOX PLC,00104485
South Ribble Council,http://statistics.data.gov.uk/doc/local-authority/30UN,Revenues Plus,Professional Fees,4510,"RV finder - Stonehouse School, School Lane",24/01/2018,0000437222,825.00,Revenue,Inform CPI Ltd,131666
South Ribble Council,http://statistics.data.gov.uk/doc/local-authority/30UN,Information Services,Peripherals,4246,Corporate Membership for period 01/01/18 - 31/12/18,05/01/2018,0000436813,350.00,Revenue,INFORMATION & RECORD MANAGEMENT SOCIETY,130889
South Ribble Council,http://statistics.data.gov.uk/doc/local-authority/30UN,Information Services,Peripherals,4243,CoreCAL ALNG LicSAPk MVL UsrCAL x 375,03/01/2018,0000436737,"7,181.25",Revenue,INSIGHT UK,00120744
South Ribble Council,http://statistics.data.gov.uk/doc/local-authority/30UN,Information Services,Peripherals,4243,WinRmtDsktpSrvcsCAL ALNG LicSAPk MVL UsrCAL x 50,03/01/2018,0000436737,"1,283.00",Revenue,INSIGHT UK,00120744
South Ribble Council,http://statistics.data.gov.uk/doc/local-authority/30UN,Information Services,Peripherals,4243,WinSvrSTDCore ALNG LicSAPk MVL 2Lic CoreLic x 8 as per quote,03/01/2018,0000436737,171.44,Revenue,INSIGHT UK,00120744
South Ribble Council,http://statistics.data.gov.uk/doc/local-authority/30UN,Neighbourhood Admin & Support,Materials General,4040,PERMANENT POTHOLE REPAIR,12/01/2018,0000436864,265.14,Revenue,INSTARMAC GROUP PLC,00024905
South Ribble Council,http://statistics.data.gov.uk/doc/local-authority/30UN,Neighbourhood Admin & Support,Materials General,4040,SCJ COLD JOINT SEALER  (750ml CAN),12/01/2018,0000436864,118.68,Revenue,INSTARMAC GROUP PLC,00024905
South Ribble Council,http://statistics.data.gov.uk/doc/local-authority/30UN,Area 2 - Waste Transport/Eastern & Central Teams,Contract Hire & Lease Costs,3212,1 TRANSPORTER VAN  - ON HIRE 14.11.17 FOR 1 WEEKS HIRE,10/01/2018,0000436868,599.70,Revenue,Intack Self Drive Ltd,132314
South Ribble Council,http://statistics.data.gov.uk/doc/local-authority/30UN,Regeneration,Other Misc,4851,South Ribble Borough Council Contribution :2K,24/01/2018,0000437190,"7,000.00",Revenue,Involve Foundation,132416
South Ribble Council,http://statistics.data.gov.uk/doc/local-authority/30UN,Revenues Plus,Professional Fees,4525,vat on fees,19/01/2018,0000437096,0.00,Revenue,JACOBS,00049252
South Ribble Council,http://statistics.data.gov.uk/doc/local-authority/30UN,Revenues Plus,Professional Fees,4525,Council Tax Bailiffs fees and arrest warrants,19/01/2018,0000437096,295.52,Revenue,JACOBS,00049252
South Ribble Council,http://statistics.data.gov.uk/doc/local-authority/30UN,Development Enterprise & Comm Mgnt,Other Misc,4851,Tennis Coaching in Woodlea Primary School 1 - 3 pm x 5 weeks (10 hrs),10/01/2018,0000436827,250.00,Revenue,Jacqueline Lowe,132083
South Ribble Council,http://statistics.data.gov.uk/doc/local-authority/30UN,Property Services,Rep & Maint Premises,2020,Please attend the Bungalow at Worden park as the boiler is not firing up following a power outage,05/01/2018,0000436751,457.90,Revenue,JAMES MERCER GROUP LTD,00028587
South Ribble Council,http://statistics.data.gov.uk/doc/local-authority/30UN,Property Services,Rep & Maint Premises,2020,2017 / 2018 contract for the maintenance of  the Trend BMS system,10/01/2018,0000436807,390.00,Revenue,JBC CONTROL SYSTEM,130816
South Ribble Council,http://statistics.data.gov.uk/doc/local-authority/30UN,HR & Communications,Agency Fees,1121,WORK CARRIED OUT BY NAME REDACTED FROM 1ST APRIL 2017 UNTIL END OF CONTRACT,05/01/2018,0000436782,"20,546.70",Revenue,Joanne Platt Associates Ltd,132222
South Ribble Council,http://statistics.data.gov.uk/doc/local-authority/30UN,Regeneration,Capital Expenditure,C230,Replacement Mulberry Tree,10/01/2018,0000436906,328.00,Revenue,John Wade Groundworks Ltd t/a Wade Group,131568
South Ribble Council,http://statistics.data.gov.uk/doc/local-authority/30UN,Planning,Advertising,4841,Press notices for planning applications 2017/18,19/01/2018,0000436755,486.00,Revenue,JOHNSTON PUBLISHING (NORTH WEST),00011345
South Ribble Council,http://statistics.data.gov.uk/doc/local-authority/30UN,Planning,Advertising,4841,Press notices for planning applications 2017/18,17/01/2018,0000436933,"1,188.00",Revenue,JOHNSTON PUBLISHING (NORTH WEST),00011345
South Ribble Council,http://statistics.data.gov.uk/doc/local-authority/30UN,Planning,Advertising,4841,Press notices for planning applications 2017/18,19/01/2018,0000436997,648.00,Revenue,JOHNSTON PUBLISHING (NORTH WEST),00011345
South Ribble Council,http://statistics.data.gov.uk/doc/local-authority/30UN,Planning,Advertising,4841,Press notices for planning applications 2017/18,26/01/2018,0000437177,513.00,Revenue,JOHNSTON PUBLISHING (NORTH WEST),00011345
South Ribble Council,http://statistics.data.gov.uk/doc/local-authority/30UN,Housing,Licence Fees,4884,Review of Chorley Community Housing Commuted Sum Application under the Commuted Sums Policy.,10/01/2018,0000436749,"1,125.00",Revenue,Keppie Massie,131948
South Ribble Council,http://statistics.data.gov.uk/doc/local-authority/30UN,Environmental Health,Materials General,4041,Various Poisons,19/01/2018,0000437050,598.43,Revenue,KILLGERM CHEMICALS LTD,00025894
South Ribble Council,http://statistics.data.gov.uk/doc/local-authority/30UN,Planning,Professional Fees,4510,Service level Agreement 2016-2017,19/01/2018,0000437134,468.75,Revenue,Lancashire Archaeological Advisory Service,132007
South Ribble Council,http://statistics.data.gov.uk/doc/local-authority/30UN,Planning,Professional Fees,4510,"Service Level Agreement 2017 - 2018 p/a 1,875.00 for NAME REDACTED",24/01/2018,0000437181,468.75,Revenue,Lancashire Archaeological Advisory Service,132007
South Ribble Council,http://statistics.data.gov.uk/doc/local-authority/30UN,HR & Communications,Training Expense-Course Fees,1402,NPTC Level 2 safe use in agricultural tractor driving.NPTC safe use of tractor mounted hedge verge cutters. NAMES REDACTED,26/01/2018,0000437106,776.00,Revenue,LANCASHIRE ASSESSMENT CENTRE LIMITED,00122331
South Ribble Council,http://statistics.data.gov.uk/doc/local-authority/30UN,HR & Communications,Other Local Authorities,4531,PAYROLL SERVICES APRIL - JUNE 2017,10/01/2018,0000436162,"5,623.75",Revenue,LANCS COUNTY COUNCIL,00041645
South Ribble Council,http://statistics.data.gov.uk/doc/local-authority/30UN,HR & Communications,Other Local Authorities,4531,PAYROLL SERVICES JULY - SEPTEMBER 2017,10/01/2018,0000436162,"5,623.75",Revenue,LANCS COUNTY COUNCIL,00041645
South Ribble Council,http://statistics.data.gov.uk/doc/local-authority/30UN,HR & Communications,Other Local Authorities,4531,PAYROLL SERVICES OCTOBER - DECEMBER 2017,10/01/2018,0000436162,"5,623.75",Revenue,LANCS COUNTY COUNCIL,00041645
South Ribble Council,http://statistics.data.gov.uk/doc/local-authority/30UN,Housing,Cap Grant- Improve Grants,C570,SUPPLY AND INSTALL STAIRLIFT AT ADDRESS REDACTED AS PER YOUR QUOTE OF - 5921.00,05/01/2018,0000436792,"5,921.00",Revenue,LANCS COUNTY COUNCIL,00041645
South Ribble Council,http://statistics.data.gov.uk/doc/local-authority/30UN,Housing,Cap Grant- Improve Grants,C570,SUPPLY AND INSTALL LIFT T AT ADDRESS REDACTED AS PER YOUR QUOTE OF - 9715.00,10/01/2018,0000436842,"9,715.00",Revenue,LANCS COUNTY COUNCIL,00041645
South Ribble Council,http://statistics.data.gov.uk/doc/local-authority/30UN,Housing,Cap Grant- Improve Grants,C570,SUPPLY AND INSTALL STAIRLIFT AT ADDRESS REDACTED AS PER YOUR QUOTE OF - 2894.00,10/01/2018,0000436899,"2,894.00",Revenue,LANCS COUNTY COUNCIL,00041645
South Ribble Council,http://statistics.data.gov.uk/doc/local-authority/30UN,Housing,Cap Grant- Improve Grants,C570,SUPPLY AND INSTALL STAIRLIFT AT ADDRESS REDACTED AS PER YOUR QUOTE OF - 5582.00,19/01/2018,0000437107,"5,582.00",Revenue,LANCS COUNTY COUNCIL,00041645
South Ribble Council,http://statistics.data.gov.uk/doc/local-authority/30UN,Legal,Other Local Authorities,4530,LAND CHARGES - NOVEMBER 2017,24/01/2018,0000437212,"1,160.50",Revenue,LANCS COUNTY COUNCIL,00041645
South Ribble Council,http://statistics.data.gov.uk/doc/local-authority/30UN,Housing,Other Local Authorities,4530,LAND CHARGES - DECEMBER 2017,26/01/2018,0000437233,618.00,Revenue,LANCS COUNTY COUNCIL,00041645
South Ribble Council,http://statistics.data.gov.uk/doc/local-authority/30UN,Area 2 - Waste Transport/Eastern & Central Teams,Materials General,4040,2 CALIPERS - MX04YNL - JFC9810 - AW,17/01/2018,0000436983,530.00,Revenue,LANCS DAF,00026424
South Ribble Council,http://statistics.data.gov.uk/doc/local-authority/30UN,Area 1 - Penwortham Western Parishes,Materials General,4040,3x  directional signs 2 x galvanised posts,19/01/2018,0000437031,319.80,Revenue,LCC SIGN SHOP,00027096
South Ribble Council,http://statistics.data.gov.uk/doc/local-authority/30UN,Planning,Professional Fees,4510,Additional work undertaken x 2 appraisals - Pickerings,19/01/2018,0000437014,720.00,Revenue,LEA HOUGH & CO,131196
South Ribble Council,http://statistics.data.gov.uk/doc/local-authority/30UN,Legal,Publications,4142,PATERSONS LICENSING ACT 2018 AND CD SET,05/01/2018,0000436822,164.29,Revenue,LEXISNEXIS BUTTERWORTHS,00037138
South Ribble Council,http://statistics.data.gov.uk/doc/local-authority/30UN,Legal,Publications,4142,non-vatable,05/01/2018,0000436822,154.71,Revenue,LEXISNEXIS BUTTERWORTHS,00037138
South Ribble Council,http://statistics.data.gov.uk/doc/local-authority/30UN,Legal,Publications,4142,carriage,05/01/2018,0000436822,7.00,Revenue,LEXISNEXIS BUTTERWORTHS,00037138
South Ribble Council,http://statistics.data.gov.uk/doc/local-authority/30UN,Housing,Cap Grant- Improve Grants,C570,"DFG WORKS AT ADDRESS REDACTED, 50% OF TOTAL COST COST 5497.97",24/01/2018,0000437175,"5,497.97",Revenue,MAHONEY CONTRACTORS LTD,131271
South Ribble Council,http://statistics.data.gov.uk/doc/local-authority/30UN,Neighbourhood Admin & Support,Materials General,4040,HAVELOCK ROAD  NO ACCESS TO HOLME ROAD,24/01/2018,0000437207,61.00,Revenue,Main Street Signs Ltd,131922
South Ribble Council,http://statistics.data.gov.uk/doc/local-authority/30UN,Neighbourhood Admin & Support,Materials General,4040,BENT LANE,24/01/2018,0000437207,114.00,Revenue,Main Street Signs Ltd,131922
South Ribble Council,http://statistics.data.gov.uk/doc/local-authority/30UN,Neighbourhood Admin & Support,Materials General,4040,BROOK LANE,24/01/2018,0000437207,39.00,Revenue,Main Street Signs Ltd,131922
South Ribble Council,http://statistics.data.gov.uk/doc/local-authority/30UN,Neighbourhood Admin & Support,Materials General,4040,MAPLE GROVE  T,24/01/2018,0000437207,13.00,Revenue,Main Street Signs Ltd,131922
South Ribble Council,http://statistics.data.gov.uk/doc/local-authority/30UN,Neighbourhood Admin & Support,Materials General,4040,T  - STICKERS,24/01/2018,0000437207,30.00,Revenue,Main Street Signs Ltd,131922
South Ribble Council,http://statistics.data.gov.uk/doc/local-authority/30UN,Neighbourhood Admin & Support,Materials General,4040,HEATHERLEIGH,24/01/2018,0000437207,13.00,Revenue,Main Street Signs Ltd,131922
South Ribble Council,http://statistics.data.gov.uk/doc/local-authority/30UN,Neighbourhood Admin & Support,Materials General,4040,LONG MOSS LANE,24/01/2018,0000437207,42.00,Revenue,Main Street Signs Ltd,131922
South Ribble Council,http://statistics.data.gov.uk/doc/local-authority/30UN,Neighbourhood Admin & Support,Materials General,4040,MOORFIELD,24/01/2018,0000437207,117.00,Revenue,Main Street Signs Ltd,131922
South Ribble Council,http://statistics.data.gov.uk/doc/local-authority/30UN,Neighbourhood Admin & Support,Materials General,4040,FAIRFAX PLACE   T,24/01/2018,0000437207,15.00,Revenue,Main Street Signs Ltd,131922
South Ribble Council,http://statistics.data.gov.uk/doc/local-authority/30UN,Neighbourhood Admin & Support,Materials General,4040,FAIRFAX PLACE  T,24/01/2018,0000437207,15.00,Revenue,Main Street Signs Ltd,131922
South Ribble Council,http://statistics.data.gov.uk/doc/local-authority/30UN,Neighbourhood Admin & Support,Materials General,4040,WINDGATE,24/01/2018,0000437207,8.00,Revenue,Main Street Signs Ltd,131922
South Ribble Council,http://statistics.data.gov.uk/doc/local-authority/30UN,Neighbourhood Admin & Support,Materials General,4040,FOWLER AVENUE   T,24/01/2018,0000437207,45.00,Revenue,Main Street Signs Ltd,131922
South Ribble Council,http://statistics.data.gov.uk/doc/local-authority/30UN,Neighbourhood Admin & Support,Materials General,4040,DELIVERY CHARGE,24/01/2018,0000437207,44.50,Revenue,Main Street Signs Ltd,131922
South Ribble Council,http://statistics.data.gov.uk/doc/local-authority/30UN,Development Enterprise & Comm Mgnt,Advertising,4842,"Enhanced Package for Leyland Truck Trail  �	Home page banner for 2 weeks �	Inclusion in one enewsletter �	Feature on campaign",24/01/2018,0000437149,450.00,Revenue,MARKETING LANCASHIRE LIMITED,00089885
South Ribble Council,http://statistics.data.gov.uk/doc/local-authority/30UN,Development Enterprise & Comm Mgnt,Other Misc,485I,Lancashire Tourism Award Tickets  X 7 @ 75.00 each  525 + VAT,24/01/2018,0000437150,525.00,Revenue,MARKETING LANCASHIRE LIMITED,00089885
South Ribble Council,http://statistics.data.gov.uk/doc/local-authority/30UN,HR & Communications,Training Expense-Course Fees,1402,MBL Smart Plan top up for Legal Department,12/01/2018,0000436954,500.00,Revenue,MBL SEMINARS,130900
South Ribble Council,http://statistics.data.gov.uk/doc/local-authority/30UN,Area 2 - Waste Transport/Eastern & Central Teams,External Contractors Charges,4570,SPEC REPAIR - ML07LCM - 9830,10/01/2018,0000436862,570.00,Revenue,MERLIN DIESEL SYSTEM LTD,130925
South Ribble Council,http://statistics.data.gov.uk/doc/local-authority/30UN,Homelessness,Contributions,4730,Bond for ADDRESS REDACTED,24/01/2018,0000436715,550.00,Revenue,METHODIST ACTION (A PLACE TO LIVE) LIMITED,130329
South Ribble Council,http://statistics.data.gov.uk/doc/local-authority/30UN,Regeneration,Other Misc,4851,Contribution to works on empty home scheme,03/01/2018,0000436674,"2,141.40",Revenue,METHODIST ACTION NORTH WEST,132206
South Ribble Council,http://statistics.data.gov.uk/doc/local-authority/30UN,Housing,Capital Expenditure,C230,EMPTY PROPERTY GRANT TO CARRY OUT REFURBISHMENT WORKS AS PER YOUR QUOTE OF 14754.00 INC vat ,24/01/2018,0000437228,"13,350.60",Revenue,METHODIST ACTION NORTH WEST,132206
South Ribble Council,http://statistics.data.gov.uk/doc/local-authority/30UN,Area 2 - Waste Transport/Eastern & Central Teams,Materials General,4040,1 button pad VN10 DKL JFC9801,31/01/2018,0000437300,433.18,Revenue,MITCHELL POWERSYTEMS,00077282
South Ribble Council,http://statistics.data.gov.uk/doc/local-authority/30UN,Revenues Plus,Agency Fees,1121,Agency worker NAME REDACTED for January 2018,17/01/2018,0000437009,774.00,Revenue,MORGAN HUNT PUBLIC SECTOR LTD,00120401
South Ribble Council,http://statistics.data.gov.uk/doc/local-authority/30UN,Revenues Plus,Agency Fees,1121,Agency worker NAME REDACTED for January 2018,19/01/2018,0000437111,888.00,Revenue,MORGAN HUNT PUBLIC SECTOR LTD,00120401
South Ribble Council,http://statistics.data.gov.uk/doc/local-authority/30UN,Revenues Plus,Agency Fees,1121,Agency worker NAME REDACTED for January 2018,26/01/2018,0000437245,888.00,Revenue,MORGAN HUNT PUBLIC SECTOR LTD,00120401
South Ribble Council,http://statistics.data.gov.uk/doc/local-authority/30UN,Area 1 - Penwortham Western Parishes,Professional Fees,4521,PROVISION OF STRAY DOG SERVICE - TO COVER DECEMBER 2017,05/01/2018,0000436853,394.45,Revenue,MORNINGSIDE KENNELS,00067755
South Ribble Council,http://statistics.data.gov.uk/doc/local-authority/30UN,Environmental Health,Licence Fees,488B,4th qtr mgmt fee,24/01/2018,0000436947,"1,375.00",Revenue,MOSS SIDE COMMUNITY FORUM,00098724
South Ribble Council,http://statistics.data.gov.uk/doc/local-authority/30UN,Neighbourhood Admin & Support,Operational Furniture & Equip,4013,DRAYTEX VIGOR 2760 ADSL/VDSL ROUTER,17/01/2018,0000436893,277.50,Revenue,MYPREMIER LTD,130091
South Ribble Council,http://statistics.data.gov.uk/doc/local-authority/30UN,Neighbourhood Admin & Support,Operational Furniture & Equip,4013,DELIVERY,17/01/2018,0000436893,10.00,Revenue,MYPREMIER LTD,130091
South Ribble Council,http://statistics.data.gov.uk/doc/local-authority/30UN,Area 2 - Waste Transport/Eastern & Central Teams,External Contractors Charges,4570,STEAM CLEAN - JFC9668 - PJ62UCH - PD,03/01/2018,0000436757,65.00,Revenue,NAYLORS TRANSPORT (LEYLAND) ltd,00114828
South Ribble Council,http://statistics.data.gov.uk/doc/local-authority/30UN,Area 2 - Waste Transport/Eastern & Central Teams,External Contractors Charges,4570,STEAM CLEAN - JFC9669 - RV14DTZ - PD,03/01/2018,0000436757,65.00,Revenue,NAYLORS TRANSPORT (LEYLAND) ltd,00114828
South Ribble Council,http://statistics.data.gov.uk/doc/local-authority/30UN,Area 2 - Waste Transport/Eastern & Central Teams,External Contractors Charges,4570,STEAM CLEAN - JFC9672 - PJ62UCL - PD,03/01/2018,0000436757,65.00,Revenue,NAYLORS TRANSPORT (LEYLAND) ltd,00114828
South Ribble Council,http://statistics.data.gov.uk/doc/local-authority/30UN,Area 2 - Waste Transport/Eastern & Central Teams,External Contractors Charges,4570,STEAM CLEAN - JFC9673 - VO65KPZ - PD,03/01/2018,0000436757,65.00,Revenue,NAYLORS TRANSPORT (LEYLAND) ltd,00114828
South Ribble Council,http://statistics.data.gov.uk/doc/local-authority/30UN,Area 2 - Waste Transport/Eastern & Central Teams,External Contractors Charges,4570,STEAM CLEAN - JFC9674 - NX58FJZ - PD,03/01/2018,0000436757,75.00,Revenue,NAYLORS TRANSPORT (LEYLAND) ltd,00114828
South Ribble Council,http://statistics.data.gov.uk/doc/local-authority/30UN,Area 2 - Waste Transport/Eastern & Central Teams,External Contractors Charges,4570,STEAM CLEAN - JFC9675 - VK09AHJ - PD,03/01/2018,0000436757,65.00,Revenue,NAYLORS TRANSPORT (LEYLAND) ltd,00114828
South Ribble Council,http://statistics.data.gov.uk/doc/local-authority/30UN,Area 2 - Waste Transport/Eastern & Central Teams,External Contractors Charges,4570,STEAM CLEAN - JFC9676 - PJ62UCG - PD,03/01/2018,0000436757,65.00,Revenue,NAYLORS TRANSPORT (LEYLAND) ltd,00114828
South Ribble Council,http://statistics.data.gov.uk/doc/local-authority/30UN,Information Services,Processing-Internal,4212,Annual renewal of iStorm & xStorm licences for period 29/01/18 - 28/01/19,05/01/2018,0000436845,"6,782.00",Revenue,NCC Group Security Services Ltd,132130
South Ribble Council,http://statistics.data.gov.uk/doc/local-authority/30UN,Property Services,Client Internal Charges,4590,2017 / 2018 fees for the front end loader weekly exchange at Leyland Market,17/01/2018,0000436962,386.12,Revenue,NEALES WASTE MANAGEMENT,130129
South Ribble Council,http://statistics.data.gov.uk/doc/local-authority/30UN,Information Services,Peripherals,4248,"SolutionCare service and support for period 16/02/18 - 15/02/19, as per quote",19/01/2018,0000437085,"9,045.00",Revenue,NETCALL TELECOM LTD,00121552
South Ribble Council,http://statistics.data.gov.uk/doc/local-authority/30UN,HR & Communications,Training Expense-Course Fees,1402,NLGN Annual Conference 2018:Changemakers Assemble 22nd February 2018 NAME REDACTED,19/01/2018,0000437080,150.00,Revenue,New Local Government Network Limited,132462
South Ribble Council,http://statistics.data.gov.uk/doc/local-authority/30UN,HR & Communications,Training Expense-Course Fees,1402,NLGN Annual Conference 2018:Changemakers Assemble 22nd February 2018 NAME REDACTED,19/01/2018,0000437080,150.00,Revenue,New Local Government Network Limited,132462
South Ribble Council,http://statistics.data.gov.uk/doc/local-authority/30UN,Neighbourhood Admin & Support,Materials General,4040,SCHMIDT MINI SWEEPER BRUSHES (SWINGO) - 71107/1,17/01/2018,0000436930,740.80,Revenue,NORTHERN MUNICIPAL SPARES LTD,00117061
South Ribble Council,http://statistics.data.gov.uk/doc/local-authority/30UN,Regeneration,Other Misc,4851,White Goods,17/01/2018,0000436961,450.00,Revenue,NORTHWEST DOMESTIC SERVICES,130100
South Ribble Council,http://statistics.data.gov.uk/doc/local-authority/30UN,Area 1 - Penwortham Western Parishes,Professional Fees,4514,DEPLOYMENT OF OFFICERS DECEMBER 2017,10/01/2018,0000436828,"1,493.32",Revenue,NSL LTD,00116868
South Ribble Council,http://statistics.data.gov.uk/doc/local-authority/30UN,Area 1 - Penwortham Western Parishes,Other Misc,4855,CASH COLLECTION & RING-GO CHARGES DECEMBER 2017,10/01/2018,0000436828,320.94,Revenue,NSL LTD,00116868
South Ribble Council,http://statistics.data.gov.uk/doc/local-authority/30UN,Information Services,Peripherals,4246,"Crisis Helpline for AD, Microsoft Exchange and Stonegate Firewall for period 12/02/18 - 11/02/19",12/01/2018,0000436972,"1,324.43",Revenue,NVIRON LTD,00028781
South Ribble Council,http://statistics.data.gov.uk/doc/local-authority/30UN,Information Services,Peripherals,4245,4 x 4 hour ProSupport for Dell Hosts PE R620 ESX1/ESX2/ESX3/ESX4 from 13/02/18 - 13/02/19 @ 1335.83 each,26/01/2018,0000437237,"5,343.32",Revenue,NVIRON LTD,00028781
South Ribble Council,http://statistics.data.gov.uk/doc/local-authority/30UN,Area 3 - Parks/Leyland East West,Capital Expenditure,C230,"CONSTRUCTION OF REINFORCED GRASS OVERFLOW CAR PARK, MOSS SIDE PLAYING FIELD.",26/01/2018,0000437057,"53,480.95",Revenue,O`Callaghan Ltd,132068
South Ribble Council,http://statistics.data.gov.uk/doc/local-authority/30UN,Healthy Communities,Sports Dev Expenses,4890,5 members of staff attending Orienteering course @70 pp 5 x 70 = 350 +vat,10/01/2018,0000436806,350.00,Revenue,OUTDOOR ACTIVITIES SERVICE AND ALTERNATIVE ADVENTU,131086
South Ribble Council,http://statistics.data.gov.uk/doc/local-authority/30UN,Planning,Agency Fees,1121,NAME REDACTED Consultant 6 months at 46ph,19/01/2018,0000437084,"2,208.00",Revenue,Park Avenue Recruitment,132388
South Ribble Council,http://statistics.data.gov.uk/doc/local-authority/30UN,Planning,Agency Fees,1121,NAME REDACTED Consultant 6 months at 46ph,26/01/2018,0000437151,"2,047.00",Revenue,Park Avenue Recruitment,132388
South Ribble Council,http://statistics.data.gov.uk/doc/local-authority/30UN,Planning,Agency Fees,1121,NAME REDACTED Consultant 6 months at 46ph,26/01/2018,0000437152,"1,978.00",Revenue,Park Avenue Recruitment,132388
South Ribble Council,http://statistics.data.gov.uk/doc/local-authority/30UN,Planning,Agency Fees,1121,NAME REDACTED Consultant 6 months at 46ph,26/01/2018,0000437153,"2,093.00",Revenue,Park Avenue Recruitment,132388
South Ribble Council,http://statistics.data.gov.uk/doc/local-authority/30UN,Planning,Agency Fees,1121,NAME REDACTED Consultant 6 months at 46ph,26/01/2018,0000437154,"1,713.50",Revenue,Park Avenue Recruitment,132388
South Ribble Council,http://statistics.data.gov.uk/doc/local-authority/30UN,Planning,Agency Fees,1121,NAME REDACTED Consultant 6 months at 46ph,26/01/2018,0000437155,920.00,Revenue,Park Avenue Recruitment,132388
South Ribble Council,http://statistics.data.gov.uk/doc/local-authority/30UN,Planning,Agency Fees,1121,NAME REDACTED Consultant 6 months at 46ph,26/01/2018,0000437156,"1,909.00",Revenue,Park Avenue Recruitment,132388
South Ribble Council,http://statistics.data.gov.uk/doc/local-authority/30UN,Area 3 - Parks/Leyland East West,External Contractors Charges,4570,AS PER QUOTE NO. PF/Q/44726/GN: INSTALL CONCRETE STRIP IN CONJUNCTION WITH INSTALLATION OF BOLLARDS ,12/01/2018,0000436429,"1,415.08",Revenue,PEERLESS FENCING LTD,130691
South Ribble Council,http://statistics.data.gov.uk/doc/local-authority/30UN,Area 3 - Parks/Leyland East West,Capital Expenditure,C230,"ERECT FENCING, ROUNDBAR VERTICAL RAILING AROUND WESTERN PERIMETER OF PENWORTHAM HOLME -146.6cm",31/01/2018,0000437051,"11,914.18",Revenue,PEERLESS FENCING LTD,130691
South Ribble Council,http://statistics.data.gov.uk/doc/local-authority/30UN,Property Services,External Contractors Charges,4575,To supply hot meals @ 6.20 per head for 55 on 17th January 2018 @ 16.30 to SRBC,19/01/2018,0000437092,341.00,Revenue,Penningtons Catering Ltd,131684
South Ribble Council,http://statistics.data.gov.uk/doc/local-authority/30UN,Environmental Health,Professional Fees,4522,gov fee,03/01/2018,0000436739,528.00,Revenue,Personnel Checks,131483
South Ribble Council,http://statistics.data.gov.uk/doc/local-authority/30UN,Environmental Health,Professional Fees,4522,admin fee,03/01/2018,0000436739,159.96,Revenue,Personnel Checks,131483
South Ribble Council,http://statistics.data.gov.uk/doc/local-authority/30UN,Property Services,Operational Furniture & Equip,4012,2017/ 2018 contract for the provision of sanitary services at the Civic Centre,10/01/2018,0000436795,898.13,Revenue,PHS GROUP PLC,00031309
South Ribble Council,http://statistics.data.gov.uk/doc/local-authority/30UN,Property Services,Operational Furniture & Equip,4012,"2017/ 2018 contract for the provision of sanitary services at Moss Side Depot, Bison Place, Leyland",10/01/2018,0000436797,405.60,Revenue,PHS GROUP PLC,00031309
South Ribble Council,http://statistics.data.gov.uk/doc/local-authority/30UN,Area 3 - Parks/Leyland East West,Grounds Maint Cntrctrs Chgs,4657,AERIAL RUNWAY TYRE (9062),17/01/2018,0000436721,69.00,Revenue,PLAY & LEISURE LTD,00032188
South Ribble Council,http://statistics.data.gov.uk/doc/local-authority/30UN,Area 3 - Parks/Leyland East West,Grounds Maint Cntrctrs Chgs,4657,4 X CANTILEVER TOP SHACKLES COMPLETE (9036),17/01/2018,0000436721,85.84,Revenue,PLAY & LEISURE LTD,00032188
South Ribble Council,http://statistics.data.gov.uk/doc/local-authority/30UN,Area 3 - Parks/Leyland East West,Grounds Maint Cntrctrs Chgs,4657,1 X CANTILEVER BASKET CHAINS (90486),17/01/2018,0000436721,105.00,Revenue,PLAY & LEISURE LTD,00032188
South Ribble Council,http://statistics.data.gov.uk/doc/local-authority/30UN,Area 3 - Parks/Leyland East West,Grounds Maint Cntrctrs Chgs,4657,DELIVERY CHARGE,17/01/2018,0000436721,35.00,Revenue,PLAY & LEISURE LTD,00032188
South Ribble Council,http://statistics.data.gov.uk/doc/local-authority/30UN,Environmental Health,Contributions,4730,"8,000 for the contribution from South Ribble Borough Council for the Domestic Abuse element of Lancashire Victim Services.",12/01/2018,0000436924,"8,000.00",Revenue,POLICE & CRIME COMMISSIONER LANCS POLICE,00026851
South Ribble Council,http://statistics.data.gov.uk/doc/local-authority/30UN,Area 2 - Waste Transport/Eastern & Central Teams,Vehicle Running Costs,3137,,10/01/2018,0000436871,650.00,Revenue,POST OFFICE LTD,00031354
South Ribble Council,http://statistics.data.gov.uk/doc/local-authority/30UN,Area 2 - Waste Transport/Eastern & Central Teams,Vehicle Running Costs,3137,,10/01/2018,0000436871,650.00,Revenue,POST OFFICE LTD,00031354
South Ribble Council,http://statistics.data.gov.uk/doc/local-authority/30UN,Area 2 - Waste Transport/Eastern & Central Teams,Vehicle Running Costs,3137,,10/01/2018,0000436871,200.00,Revenue,POST OFFICE LTD,00031354
South Ribble Council,http://statistics.data.gov.uk/doc/local-authority/30UN,Area 2 - Waste Transport/Eastern & Central Teams,Vehicle Running Costs,3137,,10/01/2018,0000436871,650.00,Revenue,POST OFFICE LTD,00031354
South Ribble Council,http://statistics.data.gov.uk/doc/local-authority/30UN,Democratic Services,Operational Furniture & Equip,4010,4 x ZFPMT1208 Tables - 1200 x 730 x 800,12/01/2018,0000436888,560.00,Revenue,PREMIER OFFICE SUPPLES (UK) LTD,00090159
South Ribble Council,http://statistics.data.gov.uk/doc/local-authority/30UN,Information Services,Stationery,4133,"60,000 sheets Evolution Everyday A4 80gm 5000 sheets Evolution Everyday A3 80gm 2500 sheets  Papago A4 Green 80gm",17/01/2018,0000436974,342.80,Revenue,PREMIER PAPER GROUP LTD,00022606
South Ribble Council,http://statistics.data.gov.uk/doc/local-authority/30UN,Housing,Licence Fees,4884,CENTRAL LANCASHIRE OBJECTIVELY ASSESSED HOUSING NEED AND STRATEGIC HOUSING MARKET ASSESSMENT,17/01/2018,0000436108,"8,710.67",Revenue,Preston City Council,131913
South Ribble Council,http://statistics.data.gov.uk/doc/local-authority/30UN,Regeneration,Other Misc,4861,"Printing of 5,000 Leyland Christmas What`s on Guides in colour A3 folded to A4",05/01/2018,0000436717,399.64,Revenue,PRESTON CITY COUNCIL,00031435
South Ribble Council,http://statistics.data.gov.uk/doc/local-authority/30UN,Regeneration,Advertising,4842,Christmas What`s on Guide for Eastern Parishes,05/01/2018,0000436718,399.64,Revenue,Preston City Council,131913
South Ribble Council,http://statistics.data.gov.uk/doc/local-authority/30UN,Regeneration,Other Misc,4861,"Printing of 5,000 Penwortham Christmas Booklets - What`s On Guide as agreed.",05/01/2018,0000436719,399.64,Revenue,PRESTON CITY COUNCIL,00031435
South Ribble Council,http://statistics.data.gov.uk/doc/local-authority/30UN,Regeneration,Other Misc,4861,"For the production of 7,000 Christmas What�s On Guides, colour, folded to A4.  As per quote number 3098.",10/01/2018,0000436798,469.86,Revenue,Preston City Council,131913
South Ribble Council,http://statistics.data.gov.uk/doc/local-authority/30UN,Area 2 - Waste Transport/Eastern & Central Teams,Materials General,4040,TYRE REPAIRS - TR182 - AW,10/01/2018,0000436858,661.10,Revenue,PRESTON TYRE SPECIALISTS,00109516
South Ribble Council,http://statistics.data.gov.uk/doc/local-authority/30UN,Area 3 - Parks/Leyland East West,Grounds Maint Cntrctrs Chgs,4657,3x Half Platforms with fixings as per quotation 1712.18031.,19/01/2018,0000437006,711.26,Revenue,PROLUDIC LTD,00083263
South Ribble Council,http://statistics.data.gov.uk/doc/local-authority/30UN,Area 3 - Parks/Leyland East West,Grounds Maint Cntrctrs Chgs,4657,Delivery,19/01/2018,0000437006,71.13,Revenue,PROLUDIC LTD,00083263
South Ribble Council,http://statistics.data.gov.uk/doc/local-authority/30UN,Area 3 - Parks/Leyland East West,Contract Hire & Lease Costs,3212,HIRE OF 5 TON EXCAVATOR - ON HIRE 7.12.17 FOR 1-2 WEEKS HIRE,19/01/2018,0000437059,350.00,Revenue,Readyplant Limited,131535
South Ribble Council,http://statistics.data.gov.uk/doc/local-authority/30UN,Area 3 - Parks/Leyland East West,Contract Hire & Lease Costs,3212,DELIVERY/COLLECTION CHARGES,19/01/2018,0000437059,80.00,Revenue,Readyplant Limited,131535
South Ribble Council,http://statistics.data.gov.uk/doc/local-authority/30UN,Area 3 - Parks/Leyland East West,Grounds Maint Cntrctrs Chgs,4657,HIRE OF 2 TON EXCAVATOR - ON HIRE 15.12.17 FOR 3 DAYS HIRE,19/01/2018,0000437061,170.00,Revenue,Readyplant Limited,131535
South Ribble Council,http://statistics.data.gov.uk/doc/local-authority/30UN,Area 3 - Parks/Leyland East West,Grounds Maint Cntrctrs Chgs,4657,del & collect charge,19/01/2018,0000437061,80.00,Revenue,Readyplant Limited,131535
South Ribble Council,http://statistics.data.gov.uk/doc/local-authority/30UN,Area 3 - Parks/Leyland East West,Grounds Maint Cntrctrs Chgs,4657,fuel,19/01/2018,0000437061,16.20,Revenue,Readyplant Limited,131535
South Ribble Council,http://statistics.data.gov.uk/doc/local-authority/30UN,Area 3 - Parks/Leyland East West,Grounds Maint Cntrctrs Chgs,4657,ADDITIONAL PLUMBING TO VINE HOUSE WATER MAIN/ HEATING SYSTEM,24/01/2018,0000436536,250.00,Revenue,RED ROSE BUILDING MAINTENANCE,00085410
South Ribble Council,http://statistics.data.gov.uk/doc/local-authority/30UN,Area 3 - Parks/Leyland East West,Grounds Maint Cntrctrs Chgs,4657,materials,24/01/2018,0000436536,650.00,Revenue,RED ROSE BUILDING MAINTENANCE,00085410
South Ribble Council,http://statistics.data.gov.uk/doc/local-authority/30UN,Property Services,Rep & Maint Premises,2020,Surfacing and make good approx. 20 sq. metres of tarmacadam pot holes to the main entrance of Middleforth industrial estate.,03/01/2018,0000436694,240.00,Revenue,RED ROSE BUILDING MAINTENANCE,00085410
South Ribble Council,http://statistics.data.gov.uk/doc/local-authority/30UN,Property Services,Rep & Maint Premises,2020,materials,03/01/2018,0000436694,285.00,Revenue,RED ROSE BUILDING MAINTENANCE,00085410
South Ribble Council,http://statistics.data.gov.uk/doc/local-authority/30UN,Property Services,Rep & Maint Premises,2020,Worden Park Please attend Dog Wash Fri 22nd Dec and empty,12/01/2018,0000436912,520.00,Revenue,RED ROSE BUILDING MAINTENANCE,00085410
South Ribble Council,http://statistics.data.gov.uk/doc/local-authority/30UN,Property Services,Rep & Maint Premises,2020,"Take up drainage channels, clear out drains and relay to front of workshop entrance Contact NAME REDACTED arrange access",12/01/2018,0000436917,720.00,Revenue,RED ROSE BUILDING MAINTENANCE,00085410
South Ribble Council,http://statistics.data.gov.uk/doc/local-authority/30UN,Property Services,Rep & Maint Premises,2020,materials,12/01/2018,0000436917,495.00,Revenue,RED ROSE BUILDING MAINTENANCE,00085410
South Ribble Council,http://statistics.data.gov.uk/doc/local-authority/30UN,Property Services,Rep & Maint Premises,2020,Annual Contract 2017/2018 for the service of grease trap at Civic Centre,12/01/2018,0000436918,295.00,Revenue,RED ROSE BUILDING MAINTENANCE,00085410
South Ribble Council,http://statistics.data.gov.uk/doc/local-authority/30UN,Property Services,Rep & Maint Premises,2020,"Unit 2 Middleforth Ind Est, Penwortham - please investigate and repair the drain that serves this unit - reported and unblocked",26/01/2018,0000437186,870.00,Revenue,RED ROSE BUILDING MAINTENANCE,00085410
South Ribble Council,http://statistics.data.gov.uk/doc/local-authority/30UN,Property Services,Rep & Maint Premises,2020,materials,26/01/2018,0000437186,550.00,Revenue,RED ROSE BUILDING MAINTENANCE,00085410
South Ribble Council,http://statistics.data.gov.uk/doc/local-authority/30UN,Property Services,Rep & Maint Premises,2020,"Take up  approx. 4.5 x 2.5 square metres of paving flags at Bamber Bridge Leisure Centre, jackhammer and fill in with concrete",24/01/2018,0000437187,450.00,Revenue,RED ROSE BUILDING MAINTENANCE,00085410
South Ribble Council,http://statistics.data.gov.uk/doc/local-authority/30UN,Property Services,Rep & Maint Premises,2020,materials,24/01/2018,0000437187,500.00,Revenue,RED ROSE BUILDING MAINTENANCE,00085410
South Ribble Council,http://statistics.data.gov.uk/doc/local-authority/30UN,Property Services,Rep & Maint Premises,2020,"Bamber bridge Leisure centre to affix the missing downspouts to the car park elevation, pipes are stored in the Leisure Centre",24/01/2018,0000437188,450.00,Revenue,RED ROSE BUILDING MAINTENANCE,00085410
South Ribble Council,http://statistics.data.gov.uk/doc/local-authority/30UN,Property Services,Rep & Maint Premises,2020,materials,24/01/2018,0000437188,175.00,Revenue,RED ROSE BUILDING MAINTENANCE,00085410
South Ribble Council,http://statistics.data.gov.uk/doc/local-authority/30UN,Area 3 - Parks/Leyland East West,External Contractors Charges,4570,"Drainage Investigations at Shrugs Wood and West Paddock, Leyland",31/01/2018,0000437291,"2,065.00",Revenue,Reid Construction & Civil Engineering Ltd,131544
South Ribble Council,http://statistics.data.gov.uk/doc/local-authority/30UN,HR & Communications,Training Expense-Course Fees,1402,NAME REDACTED TO ATTEND CIPR FILMING WITH IPHONES ON 14 DECEMBER 2017 AT RIBBLE VALLEY CIVIC CENTRE,31/01/2018,0000437255,248.10,Revenue,Ribble Valley Borough Council,131651
South Ribble Council,http://statistics.data.gov.uk/doc/local-authority/30UN,HR & Communications,Training Expense-Course Fees,1402,NAME REDACTED TO ATTEND CIPR FILMING WITH IPHONES ON 14 DECEMBER 2017 AT RIBBLE VALLEY CIVIC CENTRE,31/01/2018,0000437255,248.10,Revenue,Ribble Valley Borough Council,131651
South Ribble Council,http://statistics.data.gov.uk/doc/local-authority/30UN,Information Services,Lease Rental Charges,4036,1/10/17 to 31/12/17,24/01/2018,0000437138,435.37,Revenue,RICOH (UK) LTD,00082976
South Ribble Council,http://statistics.data.gov.uk/doc/local-authority/30UN,Property Services,Operational Furniture & Equip,4010,Annual subscription renewal for online BCIS 2018,26/01/2018,0000437219,"2,000.00",Revenue,RICS,00033307
South Ribble Council,http://statistics.data.gov.uk/doc/local-authority/30UN,Area 3 - Parks/Leyland East West,Materials General,4040,CHIKARA - 10 X 150g,12/01/2018,0000436938,"2,040.00",Revenue,RIGBY TAYLOR LTD,00033145
South Ribble Council,http://statistics.data.gov.uk/doc/local-authority/30UN,Area 3 - Parks/Leyland East West,Materials General,4040,TRUSTEE - 60 X 5ltr,12/01/2018,0000436938,"1,620.00",Revenue,RIGBY TAYLOR LTD,00033145
South Ribble Council,http://statistics.data.gov.uk/doc/local-authority/30UN,Property Services,Other Misc,485C,Service charge for units 1 - 6 Momentum Place for quarter ending March 2018,03/01/2018,0000436730,100.00,Revenue,ROUNDHOUSE MOMENTUM DEVELOPMENTS LTD,131973
South Ribble Council,http://statistics.data.gov.uk/doc/local-authority/30UN,Property Services,Other Misc,485C,Service charge for units 1 - 6 Momentum Place for quarter ending March 2018,03/01/2018,0000436730,100.00,Revenue,ROUNDHOUSE MOMENTUM DEVELOPMENTS LTD,131973
South Ribble Council,http://statistics.data.gov.uk/doc/local-authority/30UN,Property Services,Other Misc,485C,Service charge for units 1 - 6 Momentum Place for quarter ending March 2018,03/01/2018,0000436730,100.00,Revenue,ROUNDHOUSE MOMENTUM DEVELOPMENTS LTD,131973
South Ribble Council,http://statistics.data.gov.uk/doc/local-authority/30UN,Property Services,Other Misc,485C,Service charge for units 1 - 6 Momentum Place for quarter ending March 2018,03/01/2018,0000436730,100.00,Revenue,ROUNDHOUSE MOMENTUM DEVELOPMENTS LTD,131973
South Ribble Council,http://statistics.data.gov.uk/doc/local-authority/30UN,Property Services,Other Misc,485C,Service charge for units 1 - 6 Momentum Place for quarter ending March 2018,03/01/2018,0000436730,100.00,Revenue,ROUNDHOUSE MOMENTUM DEVELOPMENTS LTD,131973
South Ribble Council,http://statistics.data.gov.uk/doc/local-authority/30UN,HR & Communications,Training Expense-Course Fees,1402,NAME REDACTED TO ATTEND RETAIL AND TOWN CENTRES COURSE ON 15 FEB 2018 VENUE TO BE CONFIRMED,17/01/2018,0000437015,85.00,Revenue,RTPI,00033491
South Ribble Council,http://statistics.data.gov.uk/doc/local-authority/30UN,HR & Communications,Training Expense-Course Fees,1402,NAME REDACTED TO ATTEND RTPI SEASON TICKET PLANNING LAW UPDATE ON 5 MARH 2018,17/01/2018,0000437015,85.00,Revenue,RTPI,00033491
South Ribble Council,http://statistics.data.gov.uk/doc/local-authority/30UN,HR & Communications,Training Expense-Course Fees,1402,NAME REDACTED TO ATTEND DM UPDATE - DELIVERING QUALITY DEVELOPMENT COURSE 25 APRIL 18 SHOOSMITHS,17/01/2018,0000437015,85.00,Revenue,RTPI,00033491
South Ribble Council,http://statistics.data.gov.uk/doc/local-authority/30UN,HR & Communications,Training Expense-Course Fees,1402,NAME REDACTED TO ATTEND RTPI DEVELOPMENT MANAGEMENT UPDATE COURSE ON 25 APRIL 2018 VENUE,17/01/2018,0000437015,85.00,Revenue,RTPI,00033491
South Ribble Council,http://statistics.data.gov.uk/doc/local-authority/30UN,HR & Communications,Training Expense-Course Fees,1402,NAME REDACTED TO ATTEND DEVELOPMENT FINANCE AND VIABILITY ON 10 MAY 2018 AT OLD TRAFFORD,17/01/2018,0000437015,85.00,Revenue,RTPI,00033491
South Ribble Council,http://statistics.data.gov.uk/doc/local-authority/30UN,HR & Communications,Training Expense-Course Fees,1402,NAME REDACTED TO ATTEND LOCAL PLAN MAKING ON 23 MAY 2018 AT THE HILTON BLACKPOOL,17/01/2018,0000437015,85.00,Revenue,RTPI,00033491
South Ribble Council,http://statistics.data.gov.uk/doc/local-authority/30UN,HR & Communications,Training Expense-Course Fees,1402,NAME REDACTED TO ATTEND  ENVIRONMENT: AN OVERVIEW OF THE KEY PLANNING ISSUES COURSE 5 JUNE 2018,17/01/2018,0000437015,85.00,Revenue,RTPI,00033491
South Ribble Council,http://statistics.data.gov.uk/doc/local-authority/30UN,HR & Communications,Training Expense-Course Fees,1402,NAME REDACTED TO ATTEND HOUSING IN THE NORTH WEST (2) COURSE ON 12 SEPTEMBER 2018 AT MANCHESTER,17/01/2018,0000437015,85.00,Revenue,RTPI,00033491
South Ribble Council,http://statistics.data.gov.uk/doc/local-authority/30UN,HR & Communications,Training Expense-Course Fees,1402,NAME REDACTED TO ATTEND RTPI HERITAGE & DESIGN COURSE 19 SEPTEMBER 2018 VENUE TO BE CONFIRMED,17/01/2018,0000437015,85.00,Revenue,RTPI,00033491
South Ribble Council,http://statistics.data.gov.uk/doc/local-authority/30UN,HR & Communications,Training Expense-Course Fees,1402,NAME REDACTED TO ATTEND ENFORCEMENT UPDATE NW COURSE 14 NOVEMBER 2018 - VENUE TO BE CONFIRMED,17/01/2018,0000437015,85.00,Revenue,RTPI,00033491
South Ribble Council,http://statistics.data.gov.uk/doc/local-authority/30UN,Area 2 - Waste Transport/Eastern & Central Teams,Grounds Maint Cntrctrs Chgs,4657,"HIRE OF 13 TON EXCAVATOR, INCLUDE OPERATOR AND FUEL FOR CLEARING VEGETATION FROM POND AT WORDEN",10/01/2018,0000436910,400.00,Revenue,Ruttle Plant Ltd,132445
South Ribble Council,http://statistics.data.gov.uk/doc/local-authority/30UN,Revenues Plus,Other Misc,4851,,10/01/2018,0000436662,23.17,Revenue,S R B C,00035046
South Ribble Council,http://statistics.data.gov.uk/doc/local-authority/30UN,Revenues Plus,Other Misc,4861,,10/01/2018,0000436662,33.95,Revenue,S R B C,00035046
South Ribble Council,http://statistics.data.gov.uk/doc/local-authority/30UN,Revenues Plus,Other Misc,4851,,10/01/2018,0000436662,41.67,Revenue,S R B C,00035046
South Ribble Council,http://statistics.data.gov.uk/doc/local-authority/30UN,Revenues Plus,Operational Furniture & Equip,4010,,10/01/2018,0000436662,7.20,Revenue,S R B C,00035046
South Ribble Council,http://statistics.data.gov.uk/doc/local-authority/30UN,Revenues Plus,Contributions,4730,,10/01/2018,0000436662,162.60,Revenue,S R B C,00035046
South Ribble Council,http://statistics.data.gov.uk/doc/local-authority/30UN,Property Services,Energy Costs,2304,1/10/17 to 19/12/17,03/01/2018,0000436725,288.22,Revenue,SCOTTISH HYDRO ELECTRIC,130051
South Ribble Council,http://statistics.data.gov.uk/doc/local-authority/30UN,Property Services,Energy Costs,2304,28/9/17 to 19/12/17,17/01/2018,0000437018,"1,225.15",Revenue,SCOTTISH HYDRO ELECTRIC,130051
South Ribble Council,http://statistics.data.gov.uk/doc/local-authority/30UN,Property Services,Energy Costs,2307,ccl,17/01/2018,0000437018,117.61,Revenue,SCOTTISH HYDRO ELECTRIC,130051
South Ribble Council,http://statistics.data.gov.uk/doc/local-authority/30UN,Property Services,Energy Costs,2304,Energy Costs,17/01/2018,0000437019,"1,189.44",Revenue,SCOTTISH HYDRO ELECTRIC,130051
South Ribble Council,http://statistics.data.gov.uk/doc/local-authority/30UN,Property Services,Energy Costs,2307,Energy Costs,17/01/2018,0000437019,108.60,Revenue,SCOTTISH HYDRO ELECTRIC,130051
South Ribble Council,http://statistics.data.gov.uk/doc/local-authority/30UN,Property Services,Energy Costs,2304,8/12/17 to 5/1/18,17/01/2018,0000437020,"1,420.04",Revenue,SCOTTISH HYDRO ELECTRIC,130051
South Ribble Council,http://statistics.data.gov.uk/doc/local-authority/30UN,Property Services,Energy Costs,2307,ccl,17/01/2018,0000437020,138.44,Revenue,SCOTTISH HYDRO ELECTRIC,130051
South Ribble Council,http://statistics.data.gov.uk/doc/local-authority/30UN,Property Services,Energy Costs,2303,2/10/17 to 1/1/18,24/01/2018,0000437122,312.50,Revenue,SCOTTISH HYDRO ELECTRIC,130051
South Ribble Council,http://statistics.data.gov.uk/doc/local-authority/30UN,Property Services,Energy Costs,2303,1/12/17 to 31/12/17,24/01/2018,0000437123,493.19,Revenue,SCOTTISH HYDRO ELECTRIC,130051
South Ribble Council,http://statistics.data.gov.uk/doc/local-authority/30UN,Property Services,Energy Costs,2307,CCL,24/01/2018,0000437123,24.64,Revenue,SCOTTISH HYDRO ELECTRIC,130051
South Ribble Council,http://statistics.data.gov.uk/doc/local-authority/30UN,Property Services,Energy Costs,2303,1/12/17 to 31/12/17,24/01/2018,0000437125,"2,938.06",Revenue,SCOTTISH HYDRO ELECTRIC,130051
South Ribble Council,http://statistics.data.gov.uk/doc/local-authority/30UN,Property Services,Energy Costs,2307,CCL,24/01/2018,0000437125,153.25,Revenue,SCOTTISH HYDRO ELECTRIC,130051
South Ribble Council,http://statistics.data.gov.uk/doc/local-authority/30UN,Property Services,Energy Costs,2303,2/10/17 to 1/1/18,24/01/2018,0000437126,265.91,Revenue,SCOTTISH HYDRO ELECTRIC,130051
South Ribble Council,http://statistics.data.gov.uk/doc/local-authority/30UN,Property Services,Energy Costs,2303,1/12/17 to 31/12/17,24/01/2018,0000437129,"1,837.97",Revenue,SCOTTISH HYDRO ELECTRIC,130051
South Ribble Council,http://statistics.data.gov.uk/doc/local-authority/30UN,Property Services,Energy Costs,2307,CCL,24/01/2018,0000437129,101.14,Revenue,SCOTTISH HYDRO ELECTRIC,130051
South Ribble Council,http://statistics.data.gov.uk/doc/local-authority/30UN,Property Services,Energy Costs,2303,1/12/17 to 31/12/17,24/01/2018,0000437130,992.65,Revenue,SCOTTISH HYDRO ELECTRIC,130051
South Ribble Council,http://statistics.data.gov.uk/doc/local-authority/30UN,Property Services,Energy Costs,2307,CCL,24/01/2018,0000437130,51.00,Revenue,SCOTTISH HYDRO ELECTRIC,130051
South Ribble Council,http://statistics.data.gov.uk/doc/local-authority/30UN,Property Services,Energy Costs,2303,6/12/17 to 5/1/18,24/01/2018,0000437131,402.70,Revenue,SCOTTISH HYDRO ELECTRIC,130051
South Ribble Council,http://statistics.data.gov.uk/doc/local-authority/30UN,Property Services,Energy Costs,2307,CCL,24/01/2018,0000437131,17.95,Revenue,SCOTTISH HYDRO ELECTRIC,130051
South Ribble Council,http://statistics.data.gov.uk/doc/local-authority/30UN,Information Services,Peripherals,4246,Sophos SG 210 Premium Support 12 months renewal 251.00; Sophos SG 210 Web Protection 12 months renewal 771.00,17/01/2018,0000437033,"1,022.00",Revenue,SecureData Europe Ltd,132381
South Ribble Council,http://statistics.data.gov.uk/doc/local-authority/30UN,Healthy Communities,Consultancy Fees,4536,R & M 2017/18,12/01/2018,0000436808,"16,256.79",Revenue,SERCO LEISURE (OP) LTD,00094906
South Ribble Council,http://statistics.data.gov.uk/doc/local-authority/30UN,Healthy Communities,Consultancy Fees,4536,R & M 2017/18,31/01/2018,0000437075,"16,256.79",Revenue,SERCO LEISURE (OP) LTD,00094906
South Ribble Council,http://statistics.data.gov.uk/doc/local-authority/30UN,Healthy Communities,Consultancy Fees,4536,R & M 2017/18,31/01/2018,0000437076,"16,256.79",Revenue,SERCO LEISURE (OP) LTD,00094906
South Ribble Council,http://statistics.data.gov.uk/doc/local-authority/30UN,Information Services,Professional Fees,4520,Shredding of Confidential Waste 2017/18,03/01/2018,0000436716,258.83,Revenue,SHRED-IT LTD,00109134
South Ribble Council,http://statistics.data.gov.uk/doc/local-authority/30UN,Healthy Communities,Consultancy Fees,4532,Leisure Services Fee 2017/18,12/01/2018,0000436809,"15,778.33",Revenue,SOUTH RIBBLE COMMUNITY LEISURE LTD,00094210
South Ribble Council,http://statistics.data.gov.uk/doc/local-authority/30UN,Shared Financial Services,Balance Sheet,0030,,03/01/2018,0000436734,752.00,Revenue,SOUTH RIBBLE LABOUR PARTY LOCAL GOVERNM,00120663
South Ribble Council,http://statistics.data.gov.uk/doc/local-authority/30UN,Revenues Plus,Balance Sheet,0001,,17/01/2018,0000437029,549.42,Revenue,Specialised Inflatable Technology Ltd,132461
South Ribble Council,http://statistics.data.gov.uk/doc/local-authority/30UN,Area 2 - Waste Transport/Eastern & Central Teams,Training Expense-Course Fees,1420,invoice & reg fee for cousre,24/01/2018,0000436380,500.00,Revenue,St Helens College,132372
South Ribble Council,http://statistics.data.gov.uk/doc/local-authority/30UN,Development Enterprise & Comm Mgnt,Other Misc,4851,"Leyland Truck Trail - Skills project development Schools Resource October 2017  @ 2,480 + VAT",12/01/2018,0000436944,"2,480.00",Revenue,STEMFirst Ltd,132095
South Ribble Council,http://statistics.data.gov.uk/doc/local-authority/30UN,Area 2 - Waste Transport/Eastern & Central Teams,Other Misc,48GR,GARDEN WASTE LEAFLETS.  (225.00 + VAT - DESIGN AND 1169.00 + VAT - PRINTING),05/01/2018,0000436750,"1,394.00",Revenue,STONE CREATE LTD,130896
South Ribble Council,http://statistics.data.gov.uk/doc/local-authority/30UN,Property Services,Rents,2401,Rent review fees for Forward industrial estate from 24/07/2010 to 24/03/2017,10/01/2018,0000435685,"24,132.60",Revenue,STONEWELL PROPERTY COMPANY LTD,00118138
South Ribble Council,http://statistics.data.gov.uk/doc/local-authority/30UN,Property Services,Rents,2401,Rent review fees for Forward industrial estate from 24/07/2010 to 24/03/2017,10/01/2018,0000436092,"65,271.45",Revenue,STONEWELL PROPERTY COMPANY LTD,00118138
South Ribble Council,http://statistics.data.gov.uk/doc/local-authority/30UN,Property Services,Rep & Maint Premises,2020,"Supply of cleaning products for the Civic Centre, Leyland",17/01/2018,0000436971,417.10,Revenue,SWIFT KLEEN,00119360
South Ribble Council,http://statistics.data.gov.uk/doc/local-authority/30UN,Property Services,Rep & Maint Premises,2020,"Supply of cleaning products for the Civic Centre, Leyland",24/01/2018,0000437204,399.45,Revenue,SWIFT KLEEN,00119360
South Ribble Council,http://statistics.data.gov.uk/doc/local-authority/30UN,Property Services,Rep & Maint Premises,2020,Cleaning products for the Civic Centre,31/01/2018,0000437293,316.85,Revenue,SWIFT KLEEN,00119360
South Ribble Council,http://statistics.data.gov.uk/doc/local-authority/30UN,Area 2 - Waste Transport/Eastern & Central Teams,External Contractors Charges,4570,Spec Repair - YP11CFM - JFC9873 - PD,17/01/2018,0000436985,382.63,Revenue,TERBERG MATEC UK LTD,00058625
South Ribble Council,http://statistics.data.gov.uk/doc/local-authority/30UN,Area 2 - Waste Transport/Eastern & Central Teams,Materials General,4040, SENSOR - VO65KRD - JFC9941 - AW,17/01/2018,0000437032,481.61,Revenue,TERBERG MATEC UK LTD,00058625
South Ribble Council,http://statistics.data.gov.uk/doc/local-authority/30UN,Area 2 - Waste Transport/Eastern & Central Teams,Materials General,4040,2 SENSORS - BIN 372 - AW,31/01/2018,0000437344,549.34,Revenue,TERBERG MATEC UK LTD,00058625
South Ribble Council,http://statistics.data.gov.uk/doc/local-authority/30UN,Regeneration,Professional Fees,4510,Maintenance of bee hives at Carr Wood,05/01/2018,0000436819,450.00,Revenue,The Bee centre,132104
South Ribble Council,http://statistics.data.gov.uk/doc/local-authority/30UN,Area 3 - Parks/Leyland East West,Grounds Maint Cntrctrs Chgs,4657,10L Earthborn Silicate Primer 20L White Silicate Paint,03/01/2018,0000436348,254.87,Revenue,The Heritage Store,132437
South Ribble Council,http://statistics.data.gov.uk/doc/local-authority/30UN,Area 3 - Parks/Leyland East West,Grounds Maint Cntrctrs Chgs,4657,Delivery,03/01/2018,0000436348,7.92,Revenue,The Heritage Store,132437
South Ribble Council,http://statistics.data.gov.uk/doc/local-authority/30UN,Legal,Publications,4142,Practical Food Law Manual LL Service 2018,03/01/2018,0000436516,442.50,Revenue,THOMSON REUTERS,00034979
South Ribble Council,http://statistics.data.gov.uk/doc/local-authority/30UN,Legal,Publications,4142,Practical Food Law Manual LL Service 2018,03/01/2018,0000436516,442.50,Revenue,THOMSON REUTERS,00034979
South Ribble Council,http://statistics.data.gov.uk/doc/local-authority/30UN,Legal,Publications,4142,aldrige R55,05/01/2018,0000436787,444.00,Revenue,THOMSON REUTERS,00034979
South Ribble Council,http://statistics.data.gov.uk/doc/local-authority/30UN,Legal,Publications,4142,ONLINE SUBSCRIPTION FOR WESTLAW UK SERVICES AND PRACTICAL LAW SERVICES PERIOD 1/01/2018 - 31/12/2018,19/01/2018,0000437083,"2,339.23",Revenue,THOMSON REUTERS,00034979
South Ribble Council,http://statistics.data.gov.uk/doc/local-authority/30UN,Property Services,Capital Expenditure,C230,To provide the structured category 5E cabling scheme at the Civic Centre as per your quotationTC9874/17.,10/01/2018,0000436895,424.00,Revenue,TIS Networks,132417
South Ribble Council,http://statistics.data.gov.uk/doc/local-authority/30UN,Information Services,Peripherals,4246,"Supply & install of a new 24port panel & testing of the cables, as per quote ref. TC1006/18",19/01/2018,0000437039,466.00,Revenue,TIS Networks,132417
South Ribble Council,http://statistics.data.gov.uk/doc/local-authority/30UN,Housing,Cap Grant- Improve Grants,C570,GRANT PAYMENT TOWARDS THE COST OF SUIPPLY AND INSTALLATION EXTERNAL WALL INSULATION TO ADDRESS,17/01/2018,0000436979,"4,000.00",Revenue,Trade Energy,132102
South Ribble Council,http://statistics.data.gov.uk/doc/local-authority/30UN,Housing,Cap Grant- Improve Grants,C570,Grant payment towards the cost of supply and installation of external wall insulation to ADDRESS REDACTED,17/01/2018,0000437016,"4,000.00",Revenue,Trade Energy,132102
South Ribble Council,http://statistics.data.gov.uk/doc/local-authority/30UN,Housing,Cap Grant- Improve Grants,C570,Grant payment towards the cost of supply and installation of external wall insulation to ADDRESS REDACTED,17/01/2018,0000437017,"4,000.00",Revenue,Trade Energy,132102
South Ribble Council,http://statistics.data.gov.uk/doc/local-authority/30UN,Housing,Cap Grant- Improve Grants,C570,GRANT PAYMENT TOWARDS COST OF SUPPLY AND INSTALLATION OF EXTERNAL WALL INSULATION TO ADDRESS,17/01/2018,0000437038,"4,000.00",Revenue,Trade Energy,132102
South Ribble Council,http://statistics.data.gov.uk/doc/local-authority/30UN,Housing,Cap Grant- Improve Grants,C570,GRANT PAYMENT TOWARDS COST OF SUPPLY AND INSTALLATION OF EXTERNAL WALL INSULATION TO ADDRESS,17/01/2018,0000437058,"4,000.00",Revenue,Trade Energy,132102
South Ribble Council,http://statistics.data.gov.uk/doc/local-authority/30UN,Housing,Cap Grant- Improve Grants,C570,GRANT PAYMENT TOWARDS COST OF SUPPLY AND INSTALLATION OF EXTERNAL WALL INSULATION TO ADDRESS,19/01/2018,0000437090,"4,000.00",Revenue,Trade Energy,132102
South Ribble Council,http://statistics.data.gov.uk/doc/local-authority/30UN,Housing,Cap Grant- Improve Grants,C570,GRANT PAYMENT TOWARDS COST OF SUPPLY AND INSTALLATION OF EXTERNAL WALL INSULATION TO ADDRESS,19/01/2018,0000437091,"4,000.00",Revenue,Trade Energy,132102
South Ribble Council,http://statistics.data.gov.uk/doc/local-authority/30UN,HR & Communications,Training Expense-Course Fees,1402,NAME REDACTED TO ATTEND THE ENFORCEMENT TOOLKIT AND HOW TO USE IT COURSE ON 31 JANUARY 2018,24/01/2018,0000437221,280.00,Revenue,TREVOR ROBERTS ASSOCIATES LTD,00033996
South Ribble Council,http://statistics.data.gov.uk/doc/local-authority/30UN,Development Enterprise & Comm Mgnt,Other Misc,4851,Leyland Festival - Saturday 17th June 2017 Re Arts Centre Area,19/01/2018,0000434357,600.00,Revenue,UK Media Events Ltd,132263
South Ribble Council,http://statistics.data.gov.uk/doc/local-authority/30UN,Development Enterprise & Comm Mgnt,Other Misc,4851,Leyland Christmas Festival 2017 Stage & branding sound & engineers  @ 2980.00,19/01/2018,0000436414,"2,980.00",Revenue,UK Media Events Ltd,132263
South Ribble Council,http://statistics.data.gov.uk/doc/local-authority/30UN,Property Services,Operational Furniture & Equip,4012,Annual Contract for 2017/2018 to cover the rental and the vending  machines at the Civic Centre,10/01/2018,0000436887,322.09,Revenue,VENDING ENTERPRISES,00101501
South Ribble Council,http://statistics.data.gov.uk/doc/local-authority/30UN,Property Services,Rep & Maint Premises,2020,The Bothy - Worden Park   Please fit new stainless steel liner grade 904 bringing it down to existing stone into prepared opening,31/01/2018,0000437328,838.73,Revenue,Vic Crompton,132373
South Ribble Council,http://statistics.data.gov.uk/doc/local-authority/30UN,Information Services,Peripherals,4269,"Annual purchase order for ISDN lines, line rentals & call charges for period 01/04/17 - 31/03/18",10/01/2018,0000436466,"2,173.48",Revenue,VODAFONE RE:CABLE & WIRELESS UK,130810
South Ribble Council,http://statistics.data.gov.uk/doc/local-authority/30UN,Information Services,Peripherals,4247,"Moss Side link, internet & router - Jan 2018",05/01/2018,0000436785,"1,312.66",Revenue,VODAFONE RE:CABLE & WIRELESS UK,130810
South Ribble Council,http://statistics.data.gov.uk/doc/local-authority/30UN,Information Services,Processing-Internal,4212,Annual purchase order for GSi Convergence Framework for period 01/04/17 - 31/03/18,05/01/2018,0000436786,"2,903.48",Revenue,VODAFONE RE:CABLE & WIRELESS UK,130810
South Ribble Council,http://statistics.data.gov.uk/doc/local-authority/30UN,Information Services,Peripherals,4269,"Annual purchase order for ISDN lines, line rentals & call charges for period 01/04/17 - 31/03/18",10/01/2018,0000436927,676.15,Revenue,VODAFONE RE:CABLE & WIRELESS UK,130810
South Ribble Council,http://statistics.data.gov.uk/doc/local-authority/30UN,Property Services,Water Charges,2511,30/9/17 to 2/1/18,10/01/2018,0000436902,291.99,Revenue,WATER PLUS,00029845
South Ribble Council,http://statistics.data.gov.uk/doc/local-authority/30UN,Legal,Consultancy Fees,4541,PROFESSIONAL SERVICES 4 DECEMBER 2017 - 14 DECEMBER 2017,12/01/2018,0000436935,"1,498.50",Revenue,WEIGHTMANS LLP,00120867
South Ribble Council,http://statistics.data.gov.uk/doc/local-authority/30UN,Property Services,Capital Expenditure,C234,Professional fees for ADDRESS REDACTED,26/01/2018,0000437239,"2,977.00",Revenue,WEIGHTMANS LLP,00120867
South Ribble Council,http://statistics.data.gov.uk/doc/local-authority/30UN,Revenues Plus,Postage,4291,Revenues for Jan 2018,17/01/2018,0000437000,334.28,Revenue,WHISTL  UK LTD,131310
South Ribble Council,http://statistics.data.gov.uk/doc/local-authority/30UN,Revenues Plus,Postage,4291,Revenues for Jan 2018,19/01/2018,0000437097,252.66,Revenue,WHISTL  UK LTD,131310
South Ribble Council,http://statistics.data.gov.uk/doc/local-authority/30UN,HR & Communications,Training Expense-Course Fees,1408,OCC HEALTH ACTIVITY FOR DECEMBER 2017,26/01/2018,0000437089,350.00,Revenue,WRIGHTINGTON WIGAN & LEIGH NHS FOUNDATION TRUST,131288
South Ribble Council,http://statistics.data.gov.uk/doc/local-authority/30UN,HR & Communications,Training Expense-Course Fees,1408,,26/01/2018,0000437089,169.00,Revenue,WRIGHTINGTON WIGAN & LEIGH NHS FOUNDATION TRUST,131288
South Ribble Council,http://statistics.data.gov.uk/doc/local-authority/30UN,Development Enterprise & Comm Mgnt,Sports Dev Expenses,4890,Production of 20 page report - 525  Print of 150 copies - 340,10/01/2018,0000436658,865.00,Revenue,WRITE ANGLE PR & MARKETING LTD,00095303
South Ribble Council,http://statistics.data.gov.uk/doc/local-authority/30UN,Shared Assurance Services,Employee Related Insurance,1800,ZM Engineering inspection fee,31/01/2018,0000437264,"1,913.38",Revenue,Zurich Municipal Insurance plc,132190
South Ribble Council,http://statistics.data.gov.uk/doc/local-authority/30UN,Shared Assurance Services,Employee Related Insurance,1800,Insurance renewal policies - Combined policies,31/01/2018,0000437297,"143,621.25",Revenue,Zurich Municipal Insurance plc,132190
